Cogmind - Beta 17.1 @@@ ROGUE MODE // 2026.09.03 @ 05:33:28 Player: naththebg Result: Destroyed by EXE-6 with Concept XC Strikerail Performance ------------- Evolutions (8) 4000 Regions Visited (30) 6000 Robots Destroyed (1065) 5325 Value Destroyed (58870) 58870 Prototype IDs (124) 2480 Alien Tech Used (2) 400 Bonus (80121) 80121 TOTAL SCORE: 157196 Bonus ------- Triggered High Security 1000 High Alert Combat Kills 28715 Follower Combat Kills 5937 Prayed to X0-1V1 5000 Major X0-1V1 Interference 32400 Entered Garrisons 600 Used RIF Installer 1500 Network Hubs Disabled 200 MAIN.C Attacked Warlord 500 Built Enhanced Grunts 300 A7 Reached Mainframe 300 Met R17 at Cetus 500 Met R17 at Research 2000 Met Sigix 2000 Friendly Fire -831 Cogmind --------- Core Integrity 0/1400 Matter 539/700 Energy 518/540 System Corruption 16% Temperature Critical (514) Movement Walking (110) Location -2/Protoforge Parts ------- > --- POWER (2) -------- Improved Quantum Reactor Antimatter-Particle Reactor > --- PROPULSION (5) --- Armored-Centrium Exoskeleton > --- UTILITY (12) ----- Armored Scrap Engine Experimental Heat Sink Experimental Heat Sink Large Storage Unit Core Analyzer Graphene Brace (fused) Ghost Barrier > --- WEAPON (4) ------- Cycling Thermal Quantum Construct/G Hpw. Kinetic Linear Construct/C > --- INVENTORY (17) --- Light Quantum Reactor Enhanced Biometal Leg Enhanced Biometal Leg Experimental Matter Compressor (500) Concept Weapon Articulator Phase Redirector Concept Antimissile System Subatomic Replicator Heavy Quantum Rifle YOLO Cannon Sigix Containment Pod Sigix Corpse Sigix Corpse Peak State ------------ > --- POWER ------------ Antimatter-Particle Reactor > --- PROPULSION ------- Armored-Centrium Exoskeleton > --- UTILITY ---------- Armored Scrap Engine Coolant Network Large Storage Unit Core Analyzer Precision Energy Filter Centrium Medium Armor Plating Graphene Brace Experimental Shield Generator Ghost Barrier Advanced Component Analysis Suite > --- WEAPON ----------- Cycling Thermal Quantum Construct/G Hpw. Kinetic Linear Construct/C > --- INVENTORY -------- Light Quantum Reactor Experimental Heat Sink Experimental Heat Sink Experimental Matter Compressor Concept Weapon Articulator Phase Armor Experimental Thermal Shield Phase Redirector Concept Antimissile System Subatomic Replicator Core Cannon Sigix Containment Pod Sigix Corpse Sigix Corpse [Rating: 207] Favorites ----------- Power Constructs Engine Heavy Ion Engine Power Core Micro Fission Core Reactor Constructs Propulsion Constructs Treads Advanced Treads Leg Constructs Wheel Wheel Utility Armored Scrap Engine Device Armored Scrap Engine Storage Large Storage Unit Processor Experimental Targeting Computer Hackware Relay Coupler [NC] Protection Centrium Heavy Armor Plating Artifact Phase Armor Weapon Constructs Energy Gun Improved Medium Laser Energy Cannon Plasma Cannon Ballistic Gun Gauss Rifle Ballistic Cannon Constructs Launcher Mini Grenade Launcher Special Weapon Remote Datajack Slashing Weapon Molecular Scythe Piercing Weapon Lance Build | -11 -10 -10 -8 -8 -8 -8 -8 -6 -6 -6 -6 -6 -6 -6 -5 -5 -5 -5 -4 -4 -4 -4 -4 -4 -3 -3 -3 -2 -2 -2 ------- Run | Yrd Mat Sub Mat Gar Mat Sto Rec Fac Was Fac Ext Cet Arc Hub Fac Upp Upp War Pro Fac Was Fac Gar Arm Res Qua Gar Res Tes Frg Slots Evolved 16 | . . . 4 . . . . 4 . . . . . . 2 . . . . 2 . . . . 2 . . 2 . . Power 1 | . . . . . . . . . . . . . . . 1 . . . . . . . . . . . . . . . Propulsion 2 | . . . 1 . . . . 1 . . . . . . . . . . . . . . . . . . . . . . Utility 10 | . . . 2 . . . . 3 . . . . . . 1 . . . . . . . . . 2 . . 2 . . Weapon 3 | . . . 1 . . . . . . . . . . . . . . . . 2 . . . . . . . . . . Parts Attached 314 | 6 11 9 25 6 22 5 4 19 . 12 7 1 . 8 29 5 3 . 1 32 4 9 10 1 30 23 . 8 10 14 Power 26 | 1 1 2 1 2 2 1 . . . 1 . . . 2 5 . . . . 2 . . 1 1 2 . . . 1 1 Engine 7 | 1 1 2 1 1 . . . . . 1 . . . . . . . . . . . . . . . . . . . . Core 10 | . . . . 1 2 1 . . . . . . . . 4 . . . . 2 . . . . . . . . . . Reactor 9 | . . . . . . . . . . . . . . 2 1 . . . . . . . 1 1 2 . . . 1 1 Propulsion 21 | 2 1 1 8 1 6 1 . . . . . . . . 1 . . . . . . . . . . . . . . . Treads 15 | 2 1 1 5 . 5 1 . . . . . . . . . . . . . . . . . . . . . . . . Leg 6 | . . . 3 1 1 . . . . . . . . . 1 . . . . . . . . . . . . . . . Wheel . | . . . . . . . . . . . . . . . . . . . . . . . . . . . . . . . Hover . | . . . . . . . . . . . . . . . . . . . . . . . . . . . . . . . Flight . | . . . . . . . . . . . . . . . . . . . . . . . . . . . . . . . Utility 191 | 1 4 1 7 2 7 2 3 15 . 11 7 1 . 6 15 5 3 . 1 16 3 7 9 . 22 20 . 6 5 12 Device 121 | . 2 1 4 1 3 . 2 11 . 7 7 . . 5 7 4 2 . . 10 2 6 8 . 15 13 . 1 2 8 Storage 9 | 1 1 . . . . 1 . . . 1 . . . 1 . . . . . 2 . 1 . . . 1 . . . . Processor 21 | . 1 . 3 . . 1 1 . . 1 . . . . 2 . . . . 1 . . . . 4 3 . 2 1 1 Hackware 12 | . . . . . 2 . . 1 . . . . . . 1 1 . . . 1 . . 1 . . 2 . 1 1 1 Protection 27 | . . . . 1 2 . . 3 . 2 . 1 . . 5 . 1 . 1 2 1 . . . 3 1 . 2 1 1 Artifact 1 | . . . . . . . . . . . . . . . . . . . . . . . . . . . . . . 1 Weapon 76 | 2 5 5 9 1 7 1 1 4 . . . . . . 8 . . . . 14 1 2 . . 6 3 . 2 4 1 Energy Gun 16 | 2 3 1 . . . . . . . . . . . . 1 . . . . 4 . . . . 2 . . 1 1 1 Energy Cannon 18 | . . 2 5 1 . . . 3 . . . . . . 2 . . . . 2 . 1 . . 2 . . . . . Ballistic Gun 14 | . . 1 1 . 4 1 . . . . . . . . 2 . . . . 2 . 1 . . 1 . . . 1 . Ballistic Cannon 13 | . . 1 2 . 2 . 1 1 . . . . . . 1 . . . . 1 1 . . . . 2 . . 1 . Launcher 8 | . 2 . 1 . . . . . . . . . . . 2 . . . . 2 . . . . . . . . 1 . Special Weapon 7 | . . . . . 1 . . . . . . . . . . . . . . 3 . . . . 1 1 . 1 . . Impact Weapon . | . . . . . . . . . . . . . . . . . . . . . . . . . . . . . . . Slashing Weapon . | . . . . . . . . . . . . . . . . . . . . . . . . . . . . . . . Piercing Weapon . | . . . . . . . . . . . . . . . . . . . . . . . . . . . . . . . Special Melee Weapon . | . . . . . . . . . . . . . . . . . . . . . . . . . . . . . . . Unidentified Prototypes 56 | . 1 . . . 1 . 1 6 . . . 1 . 3 4 . . . . 2 . 1 . . 11 13 . . 5 7 Corrupted Parts 3 | . . . . . . . . . . . . . . . . . 1 . . . . . . . . 1 . . 1 . System Corruption 20 | . . . . . . . . . . . . . . . . . 6 . . . . . . . . 10 . . 4 . Parts Lost 86 | . 1 4 9 7 4 . . 2 . 3 . . . 8 14 . 2 . 1 9 . 2 1 2 1 2 . 1 6 7 Power 14 | . . 1 . 2 1 . . . . 1 . . . 1 2 . 1 . 1 . . . 1 . 1 . . . 1 1 Propulsion 9 | . . 1 4 1 . . . . . . . . . 3 . . . . . . . . . . . . . . . . Utility 42 | . 1 . 1 1 1 . . 2 . 2 . . . 2 9 . 1 . . 6 . 1 . 2 . 2 . 1 5 5 Weapon 21 | . . 2 4 3 2 . . . . . . . . 2 3 . . . . 3 . 1 . . . . . . . 1 Highest Loss Streak 9 | . 1 2 9 2 2 . . 1 . 1 . . . 3 5 . 1 . 1 3 . 1 1 2 1 1 . 1 3 6 To Critical Strikes 1 | . . . . 1 . . . . . . . . . . . . . . . . . . . . . . . . . . Average Backups 15 | 4 13 13 12 15 15 17 15 18 19 20 20 21 19 19 18 19 20 21 21 15 16 16 16 16 16 14 10 8 10 10 Power . | . 1 1 . . . . 1 3 3 1 . . 2 1 . 1 2 2 2 1 2 1 . . . . . . . 1 Propulsion 1 | 2 4 3 2 4 3 4 4 3 2 1 1 . . . . 2 2 3 2 . . . . . . . . . . . Utility 7 | . . 1 1 4 4 3 3 4 7 10 12 8 9 9 7 9 11 12 11 9 8 13 13 13 13 9 6 6 6 6 Weapon 5 | . 7 7 7 5 7 9 5 6 6 7 5 10 8 7 9 4 3 3 3 3 4 2 2 3 2 2 2 1 2 1 Tool/Special . | . . . . . . . . . . . . . . . . . . . . . . . . . . . . . . . Unused Backups 255 | . 9 48 7 4 8 . 6 24 . 17 4 16 6 1 12 7 4 . 3 15 1 9 2 2 12 21 . 1 3 13 Power 14 | . . 6 . . . . . . . 2 . . . . . . . . . 1 . 1 . . 1 1 . . . 2 Propulsion 32 | . 2 8 1 1 2 . 1 3 . 3 . 2 . . 2 . . . 1 2 . 1 . . . . . . . 3 Utility 51 | . . 6 . 2 2 . . . . 2 . 5 . 1 1 1 1 . 1 6 . 4 1 . 4 8 . 1 1 4 Weapon 155 | . 7 28 6 1 4 . 5 21 . 10 4 8 6 . 9 6 2 . 1 6 1 3 1 2 7 12 . . 2 3 Tool/Special 3 | . . . . . . . . . . . . 1 . . . . 1 . . . . . . . . . . . . 1 Average Slot Usage (%) 66 | . 92 90 89 96 98 92 74 55 60 59 59 60 60 56 55 59 58 58 56 60 58 58 60 61 59 49 53 54 50 54 Engine 2 | . 14 10 8 6 . . 1 5 6 6 2 . . . . 1 . . . . . . . . . . . . . . Core 2 | . . 3 . 2 8 9 7 . . . 3 1 6 4 3 6 2 . . 6 5 5 3 . . . . . . . Reactor 2 | . . . . . . . . . . . . 4 . 1 2 . 1 5 5 1 5 5 6 9 8 5 3 3 4 4 Treads 7 | . 28 22 20 . 16 27 18 4 . . 2 1 . . 1 3 . . . 3 . 1 . . 2 . . . 3 . Leg 2 | . . . 6 26 10 . . 1 6 6 3 1 . . 3 1 . . . 1 . . . . 1 2 3 3 . 2 Device 18 | . 5 13 15 17 1 9 12 19 26 23 22 26 26 23 18 26 33 35 31 17 11 18 24 25 27 17 18 17 17 22 Storage 6 | . 14 13 8 9 9 9 9 5 6 6 6 6 6 7 5 5 5 5 5 4 5 5 5 4 4 4 4 4 4 4 Processor 4 | . 1 . 7 9 9 9 4 . . 4 6 6 6 3 3 . . . . 3 5 5 5 4 3 5 9 12 11 5 Hackware 1 | . . . . . 8 9 5 5 6 . . . . . . 3 . . . 4 5 2 . . . . . . 2 3 Protection 1 | . . . . . 7 . . 3 . 1 3 . . . 3 . . . 2 2 . . . . 2 3 3 3 . 1 Energy Gun 1 | . 27 6 . . . . . . . . . . . . 2 . . . . . . . . . . . . . . . Energy Cannon 3 | . . 2 12 23 . . 1 3 6 5 3 5 3 . 3 2 . . . 2 5 4 6 5 2 2 . 4 3 3 Ballistic Gun 1 | . . 1 1 . 19 9 . . . . . . . . 2 1 . . . . . . . . . . . . . . Ballistic Cannon 2 | . . 2 6 . 3 6 9 2 . . 2 . 2 6 . . 4 5 5 2 4 . 1 4 1 2 3 . . 2 Launcher 1 | . . 8 . . . . . . . . . . . . . . . . . . . . . . . . . . . . Special Weapon 1 | . . 3 . . 3 4 5 . . . . . . . . . . . . 4 5 4 . . 1 . 2 1 . . Peak Build Rating 207 | 6 27 41 56 46 52 42 73 94 85 98 99 114 109 113 116 129 134 130 130 135 134 144 132 133 177 193 192 191 200 207 Average Rating 103 | 4 13 31 44 42 35 39 51 84 84 92 93 105 106 101 93 106 125 130 126 120 124 131 125 128 156 180 178 187 183 194 On Entrance 98 | . 6 27 37 46 43 36 42 72 84 85 96 95 109 105 45 99 125 130 130 117 123 134 126 128 123 173 177 177 191 171 Avg Prop Armor Cover (%) 28 | 33 . 12 . . . . . . . . . . . . . . . . . . . . . . . . . . . . Naked Turns . | . . . . . . . . . . . . . . . . . . . . . . . . . . . . . . . Heaviest Build 160 | 11 35 46 62 60 58 70 70 89 78 86 86 88 72 82 100 82 92 79 90 125 111 129 122 119 146 150 131 160 135 153 Greatest Support 230 | 40 40 70 85 60 66 64 64 126 126 126 126 135 48 48 72 151 151 131 131 203 108 129 57 94 153 168 157 160 230 169 Greatest Overweight (x) 5 | . . 1 2 1 2 1 5 1 . . . 1 1 4 5 1 1 . . 1 1 1 2 2 1 2 . 1 . 1 Average Overweight (x) . | . . . . . . . 1 . . . . . 1 1 1 . . . . . . . 1 1 . . . . . . Largest Inventory Capacity 22 | 8 15 15 17 17 17 22 22 22 22 22 22 22 22 22 22 22 22 22 22 22 17 17 17 17 17 17 17 17 17 17 Average Capacity 18 | 7 13 15 16 17 17 18 22 22 22 22 22 22 22 22 22 22 22 22 22 16 17 17 17 17 17 17 17 17 17 17 Most Carried 22 | 6 15 15 17 17 17 20 22 22 22 22 22 22 22 22 22 22 22 22 22 22 17 17 17 17 17 17 17 17 17 17 Average Carried 17 | 4 13 14 13 16 16 17 15 20 21 21 20 21 19 20 19 19 21 22 21 15 16 16 16 16 16 16 16 15 16 16 Final Capacity 22 | 8 15 15 17 17 17 22 22 22 22 22 22 22 22 22 22 22 22 22 22 17 17 17 17 17 17 17 17 17 17 17 Final Carried 22 | 6 15 15 17 16 17 20 22 21 22 22 21 22 20 18 18 22 22 22 22 16 17 17 17 16 17 17 17 15 17 15 Scrap Engine Consumption 438 | . . . . . . . 17 47 . 21 20 8 9 . 35 13 1 . 10 25 7 11 9 40 52 76 11 5 11 10 Constructs Created 30 | . . . . . . . 7 . . . 1 . . . 2 2 . . . 2 . 1 . . 2 5 2 2 2 2 Constructs Modified 473 | . . . . . . . 40 34 . 8 7 29 4 . 12 28 38 . 2 54 1 20 5 18 36 70 11 12 20 24 Transmogrified Parts 77 | . . 71 6 . . . . . . . . . . . . . . . . . . . . . . . . . . . Integrity Recovered 1317 | . . 1171 146 . . . . . . . . . . . . . . . . . . . . . . . . . . . Class Distribution -------------------- 48% | Construct 18% | Mutant 9% | Scavenger-Construct 7% | Gunner 6% | Commander-Construct 3% | Scavenger-Gunner Dominant Class ---------------- Mutant | -10/Materials Mutant | -10/Subcaves Gunner | -8/Materials Gunner | -8/Garrison Gunner | -8/Materials Commander-Gunner | -8/Storage Scavenger-Gunner | -8/Recycling Construct | -6/Factory Construct | -6/Waste Construct | -6/Factory Construct | -6/Extension Construct | -6/Cetus Commander-Construct | -6/Archives Commander-Construct | -6/Hub_04(d) Mutant | -5/Factory Construct | -5/Upper Caves Construct | -5/Upper Caves Commander-Construct | -5/Warlord Construct | -4/Proximity Caves Scavenger-Construct | -4/Factory Scavenger-Construct | -4/Waste Scavenger-Construct | -4/Factory Construct | -4/Garrison Commander-Construct | -4/Armory Scavenger-Construct | -3/Research Construct | -3/Quarantine Construct | -3/Garrison Construct | -2/Research Construct | -2/Testing Hacker-Construct | -2/Protoforge Resources | -11 -10 -10 -8 -8 -8 -8 -8 -6 -6 -6 -6 -6 -6 -6 -5 -5 -5 -5 -4 -4 -4 -4 -4 -4 -3 -3 -3 -2 -2 -2 ----------- Run | Yrd Mat Sub Mat Gar Mat Sto Rec Fac Was Fac Ext Cet Arc Hub Fac Upp Upp War Pro Fac Was Fac Gar Arm Res Qua Gar Res Tes Frg Matter Collected 28870 | 221 193 1907 1337 575 1423 1143 813 2812 . 1634 622 50 150 327 1307 670 280 . 520 1347 551 1410 2396 549 2294 3247 75 120 743 154 Remotely . | . . . . . . . . . . . . . . . . . . . . . . . . . . . . . . . Salvage Created 58619 | . 550 1255 2006 1224 1611 1045 149 6608 . 3732 3261 673 115 1830 2578 376 1398 . 1001 3178 1112 2771 2148 772 4519 2870 2486 2080 4988 2283 Parts 2326 | . 39 74 110 57 95 62 12 231 . 110 147 33 8 77 103 18 49 . 47 88 22 82 77 29 173 190 57 100 142 94 Haulers Intercepted 35 | . 2 . 1 . 4 5 . 8 . 1 4 . . 3 2 . . . . . . 4 . . 1 . . . . . Recyclers Shooed 13 | . . . . . 1 1 . 8 . . . . . . . . . . . . . 1 . . 1 . . . 1 . Parts Field Recycled . | . . . . . . . . . . . . . . . . . . . . . . . . . . . . . . . Retrieved Matter . | . . . . . . . . . . . . . . . . . . . . . . . . . . . . . . . Parts Self-Destructed 147 | . . 30 . . . . . . . . . . . . . 11 50 . 56 . . . . . . . . . . . Prevented 11 | . . 8 . . . . . . . . . . . . . 3 . . . . . . . . . . . . . . Parts Restored . | . . . . . . . . . . . . . . . . . . . . . . . . . . . . . . . Kills | -11 -10 -10 -8 -8 -8 -8 -8 -6 -6 -6 -6 -6 -6 -6 -5 -5 -5 -5 -4 -4 -4 -4 -4 -4 -3 -3 -3 -2 -2 -2 ------- Run | Yrd Mat Sub Mat Gar Mat Sto Rec Fac Was Fac Ext Cet Arc Hub Fac Upp Upp War Pro Fac Was Fac Gar Arm Res Qua Gar Res Tes Frg Combat Hostiles Destroyed 859 | . 14 39 45 37 31 16 8 65 . 53 30 8 1 12 50 12 22 . 16 65 11 50 37 10 54 35 35 26 47 30 Melee 5 | . . . . . 2 . . 1 . . . . . . . . . . . 1 . . . . . . . . . 1 Guns 65 | . 10 8 1 . 21 11 . . . . . . . . 13 1 . . . . . . . . . . . . . . Cannons 563 | . . 5 34 31 7 5 8 47 . 36 27 8 1 12 13 . 22 . 16 36 6 39 18 9 42 32 20 25 39 25 AOE 102 | . 4 24 9 . 1 . . 3 . 5 . . . . 18 9 . . . 8 1 4 11 . 3 . 1 1 . . Classes Destroyed 33 | . 6 3 9 1 1 1 . 2 . 2 . . . . . . . . . 1 1 . 1 . 1 . . . 3 1 Worker 25 | . 2 . 2 . 3 1 . 7 . 2 3 . . . 1 . . . . . . 2 . . . . . 1 1 . Builder 22 | . 3 . 4 . 1 1 . 9 . . . . . 1 1 . . . . . . . . . . . . 1 1 . Tunneler 9 | . . . . . 1 . . 1 . 3 1 . . 1 . . . . . . . 1 . . 1 . . . . . Hauler 35 | . 2 . 1 . 4 5 . 8 . 1 4 . . 3 2 . . . . . . 4 . . 1 . . . . . Recycler 27 | . . . 2 . . 1 . 9 . 2 2 . . 2 . . . . . 1 . 1 . . 2 . . 1 4 . Carrier 2 | . . . . . . . . . . 1 . . . . . . . . . . . . . . 1 . . . . . Mechanic 5 | . . . 1 . . . . 2 . . . . . . 1 . . . . . . 1 . . . . . . . . Operator 19 | . . . 3 . 1 1 . 2 . 4 . . 1 . . . . . . 1 . . . . . . . 1 4 1 Drone 6 | . . . . . . . . . . . . . . . . . . . . . . . . . . . . . . 6 Turret 2 | . . 2 . . . . . . . . . . . . . . . . . . . . . . . . . . . . Watcher 47 | . 3 . 5 . 5 1 . 6 . 5 2 1 . . 1 . . . . 2 . 4 . 1 1 2 . 2 3 3 Swarmer 110 | . 6 8 6 14 4 1 . . . 12 . . . 1 5 5 3 . 6 8 . 5 10 . 6 . 5 5 . . Cutter 4 | . . . . . . . . 4 . . . . . . . . . . . . . . . . . . . . . . Saboteur 3 | . . . . . . . . . . . . . . . . . . . . 2 . . . . . . . . . 1 Grunt 313 | . 8 10 18 10 17 5 . 25 . 27 12 . . 5 18 2 7 . 8 24 4 26 17 5 11 11 19 7 14 3 Brawler 27 | . . . 4 1 . . . 1 . 3 4 . . . 1 . 3 . . 5 . . 1 . 1 . 1 . 1 1 Duelist 21 | . . . . . . . . 3 . . . . . 1 3 3 2 . . 1 . 2 1 . 1 . 1 1 1 1 Protector 14 | . . . 1 . . . 1 1 . . 2 . . . 4 . . . . 2 . 1 . . . . . . 2 . Researcher 7 | . . . . . . . . . . . . . . . . . . . . . . . . . . . . . 7 . Sentry 96 | . . . 10 6 8 8 1 5 . 2 9 1 1 2 2 2 2 . 2 6 . 6 3 2 2 4 3 5 3 1 Demolisher 5 | . . . . . . 1 . . . . . . . . . . . . . . . . . . 4 . . . . . Specialist 14 | . . . 2 . . . . 2 . . 1 . . . . . . . . . 3 . . . . . . . 3 3 Hunter 56 | . . . 3 3 1 1 . 16 . 2 . . . . 4 . 1 . . 6 . 2 . . 6 . . 2 9 . Programmer 78 | . . . . 3 . . . 5 . 6 1 . . 1 11 . 3 . . 9 . 5 3 3 4 3 2 6 10 3 Heavy 4 | . . . 1 . 1 . . 1 . . . . . . . . . . . 1 . . . . . . . . . . Behemoth 8 | . . . . . . . . . . 1 1 . . 1 . . . . . 1 . . 1 . . . 2 . . 1 Compactor 4 | . . . . . . . . . . . . . . . . . . . . . 4 . . . . . . . . . Cetus Guard 7 | . . . . . . . . . . . . 7 . . . . . . . . . . . . . . . . . . Quarantine Guard 12 | . . . . . . . . . . . . . . . . . . . . . . . . . . 12 . . . . Enhanced Grunt 3 | . . . . . . . . . . . . . . 3 . . . . . . . . . . . . . . . . Lightning 4 | . . . . . . . . . . . . . . 1 . . . . . . . . . . . 3 . . . . Hotshot 4 | . . . . . . . . . . . . . . . . . . . . . . . . . . . . . . 4 Immortal 2 | . . . . . . . . . . . . . . . . . . . . . . . . . . . . . . 2 Striker 20 | . . . . . . . . . . . . . . . . . . . . . . . 1 . 16 . . . 1 2 Executioner 3 | . . . . . . . . . . . . . . . . . . . . . . . . . 3 . . . . . Alpha 7 4 | . . . . . . . . . . . . . . . . . . . . . . . . . . . . . 2 2 Subdweller 24 | . . 18 . . . . 6 . . . . . . . . . . . . . . . . . . . . . . . Wasp 3 | . . . . . . . . . . . . . . . . . . . . . . 3 . . . . . . . . Thug 2 | . . . . . . . . . . . 1 . . 1 . . . . . . . . . . . . . . . . Butcher 1 | . . . . . . . . . . . 1 . . . . . . . . . . . . . . . . . . . Guerrilla 4 | . . . . . . . . . . . . . . . 2 . . . . . . . . . . 2 . . . . Mutant 8 | . . 3 . . . . . 2 . . . . . . . . 1 . . . . . . . . . 2 . . . Troll 1 | . . . . . . . . . . . . . . . . . . . . . . . . . . . . . 1 . Best Kill Streak 15 | . 6 6 10 4 4 9 3 10 . 15 14 5 1 5 11 7 11 . 5 12 5 11 6 4 6 5 11 6 11 6 Combat Bots Only 13 | . 3 6 8 4 4 3 3 6 . 13 10 4 1 2 11 7 11 . 5 12 5 10 6 4 6 5 11 6 11 6 Max Kills in Single Turn 5 | . 2 3 4 2 2 2 1 5 . 4 2 1 1 4 5 3 1 . 1 3 1 3 4 1 3 1 1 1 2 1 Gunslinging 1 | . . 1 . . . . . . . . . . . . . . . . . . . . . . . . . . . . Exploded 5 | . 2 3 3 . 1 . . 1 . 2 . . . . 5 3 . . . 3 1 3 4 . 3 . 1 1 . . Melee 1 | . . . . . 1 . . 1 . . . . . . . . . . . 1 . . . . . . . . . 1 Uniques/NPCs Destroyed . | . . . . . . . . . . . . . . . . . . . . . . . . . . . . . . . Combat | -11 -10 -10 -8 -8 -8 -8 -8 -6 -6 -6 -6 -6 -6 -6 -5 -5 -5 -5 -4 -4 -4 -4 -4 -4 -3 -3 -3 -2 -2 -2 -------- Run | Yrd Mat Sub Mat Gar Mat Sto Rec Fac Was Fac Ext Cet Arc Hub Fac Upp Upp War Pro Fac Was Fac Gar Arm Res Qua Gar Res Tes Frg Hostile Shots Fired 3898 | . 51 184 217 140 124 56 25 271 1 155 69 15 4 252 319 27 124 . 75 320 9 135 121 163 184 120 168 99 255 215 Missed 1148 | . 12 84 65 34 28 12 9 89 1 47 30 8 2 53 76 8 40 . 35 103 5 46 32 48 59 33 51 36 69 33 Deflected 13 | . . . . . . . . . . . . . . . . . . . . . . 7 . . . . 2 4 . . Hits 2750 | . 39 100 152 106 96 44 16 182 . 108 39 7 2 199 243 19 84 . 40 217 4 89 89 115 125 87 117 63 186 182 Melee 73 | . . . . . . . . 4 . 1 . . . 12 9 . 3 . . 3 . 1 . 1 4 . 1 . . 34 Projectile 2677 | . 39 100 152 106 96 44 16 178 . 107 39 7 2 187 234 19 81 . 40 214 4 88 89 114 121 87 116 63 186 148 AOE 7 | . . . . . . . . 1 . . . . . . 1 . . . . . . . . . 5 . . . . . Critical Strikes 165 | . . 1 9 10 2 . . 7 . 7 2 . . 18 20 1 2 . 2 11 . 6 8 8 6 11 8 2 13 11 Actively Blocked 36 | . . . . . . . . . . . . . . . . . . . . . . . 1 . . 1 8 2 13 11 Part Disruptions 7 | . . 1 . 1 . . . . . . . . . 1 . . . . . . . 1 . 2 . . 1 . . . Damage Taken 49362 | . 492 1805 2667 1231 1492 649 323 2731 . 2093 684 57 53 4056 5155 272 1463 66 591 3792 53 1603 969 1148 1918 1766 1636 752 4032 5813 Core 5342 | . 75 277 363 281 84 56 40 252 . 208 71 3 28 326 376 26 186 . 52 394 15 253 81 87 119 166 91 57 210 1165 Absorbed by Shields 9100 | . . . 40 12 . . . . . . 9 52 . . . 52 86 . . 942 . 561 871 1204 1980 1286 742 491 . 772 Reduced by Siege Mode 192 | . . 26 . . . . . . . . . . . . 65 . . . . . . . . . . 10 . . 91 . Redirected to Core 213 | . . . . . . . . . . . . . . . . . . . . . . . . . . . . . . 213 Ignored by Resistances 3271 | . . 95 218 54 . . . 95 . 10 . . . 1457 15 21 169 . 153 298 . . . . . . 121 160 405 . Regen/Repaired (Parts) 17456 | . . . . . . 463 37 1203 . 955 1310 80 25 26 1435 668 713 . 352 1603 . 1030 250 625 1030 678 433 608 1745 2187 Core Remaining (%) 78 | 100 . 93 . . . . 92 . . . . . . 13 . . . . 78 . . . . 78 . . 94 . . . Volleys Fired 3017 | . 48 126 141 89 122 66 33 195 . 144 119 34 4 61 166 14 64 . 53 209 83 301 148 71 163 125 64 65 185 124 Largest 3 | . 2 2 3 3 3 3 1 1 . 1 1 1 1 1 3 1 1 . 1 2 2 1 2 2 2 1 1 2 1 1 Hottest 304 | . 112 160 240 240 84 84 65 260 . 260 270 270 231 92 155 37 119 . 56 99 115 90 257 304 295 170 84 188 282 282 Shots Fired 3594 | . 91 204 222 208 265 124 33 192 . 143 119 33 4 60 231 14 63 . 53 214 85 298 143 75 164 121 63 69 180 123 Gun 605 | . 86 96 3 . 209 90 . . . . . . . . 104 7 . . . 1 . . . . 9 . . . . . Cannon 2823 | . . 55 212 208 42 23 33 191 . 143 119 33 4 60 111 1 63 . 53 184 85 289 134 75 153 121 63 69 176 123 Launcher 109 | . 5 53 7 . . . . . . . . . . . 16 6 . . . 11 . 1 9 . 1 . . . . . Special 57 | . . . . . 14 11 . 1 . . . . . . . . . . . 18 . 8 . . 1 . . . 4 . Kinetic 1520 | . . 46 90 12 251 113 33 49 . 14 69 18 3 60 117 3 57 . 53 97 39 33 30 59 71 102 . 7 3 91 Thermal 1042 | . 85 21 125 196 . . . 37 . 2 41 11 1 . 59 . 6 . . 22 . 181 51 16 31 9 . 62 85 1 Explosive 94 | . 5 43 7 . . . . . . . . . . . 16 6 . . . 6 . 1 9 . 1 . . . . . Electromagnetic 881 | . 1 94 . . . . . 105 . 127 9 4 . . 39 5 . . . 71 46 75 53 . 60 10 63 . 88 31 Robot Hit Streak 34 | . 7 23 17 26 19 9 18 22 . 9 12 14 2 10 28 7 10 . 7 14 13 8 14 6 9 30 34 16 33 16 Robot Miss Streak 8 | . 3 4 8 3 3 5 2 6 . 2 6 3 2 2 4 1 3 . 3 4 4 6 4 5 4 2 1 2 3 5 Penetration Max 1 | . . . 1 . 1 1 . 1 . . . 1 . 1 1 . . . 1 . 1 1 1 1 . . . . . . Secondary Targets 8 | . . 1 . . 4 3 . . . . . . . . . . . . . . . . . . . . . . . . Max Gunslinging Chain 1 | . . 1 . . 1 1 . . . . . . . . . . . . . . . . . . . . . . . . Capacitor 369 | . . . . . . . . . . . . . . . . . . . . . . 237 27 . . . . . 105 . Shots Hit Robots 2262 | . 48 104 126 115 179 73 19 153 . 90 80 25 2 38 167 7 42 . 38 136 76 162 74 32 97 70 51 51 124 83 Core Hits 1200 | . 28 67 71 42 72 34 5 138 . 44 46 9 2 27 108 19 21 . 20 62 27 70 47 13 50 30 21 27 69 31 Critical Kills 32 | . . . . 1 1 1 . . . . . . . 1 6 . . . 2 3 3 6 7 . . . . . 1 . Critical Parts Destroyed 43 | . . . . . . . . . . . . . . 1 5 . . . . 2 5 17 12 . . . . . . 1 Critical Strikes 139 | . 4 4 10 1 4 5 3 1 . . . . . 2 11 . 2 . 2 14 25 25 22 . 1 1 . . 1 1 Burn 5 | . 4 . . . . . . . . . . . . . . . . . . . . . . . 1 . . . . . Meltdown 1 | . . . . 1 . . . . . . . . . . . . . . . . . . . . . . . . . . Destroy 97 | . . . . . 2 1 . . . . . . . 2 11 . . . 2 5 25 25 22 . . . . . 1 1 Blast 24 | . . 2 10 . 2 4 3 . . . . . . . . . 2 . . . . . . . . 1 . . . . Corrupt 11 | . . 2 . . . . . . . . . . . . . . . . . 9 . . . . . . . . . . Sunder 1 | . . . . . . . . 1 . . . . . . . . . . . . . . . . . . . . . . Melee Attacks . | . . . . . . . . . . . . . . . . . . . . . . . . . . . . . . . Impact . | . . . . . . . . . . . . . . . . . . . . . . . . . . . . . . . Slashing . | . . . . . . . . . . . . . . . . . . . . . . . . . . . . . . . Piercing . | . . . . . . . . . . . . . . . . . . . . . . . . . . . . . . . Sneak Attacks . | . . . . . . . . . . . . . . . . . . . . . . . . . . . . . . . Combat Hostiles . | . . . . . . . . . . . . . . . . . . . . . . . . . . . . . . . Follow-up Attacks . | . . . . . . . . . . . . . . . . . . . . . . . . . . . . . . . Damage Inflicted 173346 | . 1184 4361 6918 3584 4159 2433 1221 13316 . 9045 9279 2522 311 5955 8380 1120 4003 . 2378 11372 1785 10585 6567 1802 12172 10245 5232 7711 13660 12046 Guns 8572 | . 805 988 23 . 2869 1312 . . . . . . . . 2284 145 . . . . . . . . 146 . . . . . Cannons 146606 | . . 947 6001 3537 873 1098 1221 12308 . 7583 8483 2522 311 5448 2514 . 4003 . 2378 9064 1490 10134 4983 1802 11586 10245 5081 7530 13563 11901 Explosions 17428 | . 372 2426 889 47 331 . . 742 . 1406 765 . . 487 3582 975 . . . 2288 295 451 1584 . 428 . 126 165 69 . Melee . | . . . . . . . . . . . . . . . . . . . . . . . . . . . . . . . Ramming 740 | . 7 . 5 . 86 23 . 266 . 56 31 . . 20 . . . . . 20 . . . . 12 . 25 16 28 145 Kinetic 70522 | . . 710 4256 649 3742 2410 1221 3985 . 718 5084 1334 152 5448 2394 50 3625 . 2378 4112 620 972 996 1578 5583 9044 . 569 221 8671 Thermal 42802 | . 821 324 1768 2888 . . . 2203 . 1506 3378 1036 159 . 1776 . 291 . . 2118 295 6715 2077 224 1217 472 126 7126 6282 . Explosive 10964 | . 356 2070 889 47 331 . . . . . . . . . 3197 975 . . . 636 . 451 1584 . 428 . . . . . Electromagnetic 48160 | . . 1257 . . . . . 6791 . 6765 786 152 . 487 1013 95 . . . 4486 870 2447 1910 . 4932 729 5081 . 7129 3230 Impact . | . . . . . . . . . . . . . . . . . . . . . . . . . . . . . . . Slashing . | . . . . . . . . . . . . . . . . . . . . . . . . . . . . . . . Piercing . | . . . . . . . . . . . . . . . . . . . . . . . . . . . . . . . Entropic 158 | . . . . . . . . 71 . . . . . . . . 87 . . . . . . . . . . . . . Highest Corruption 65 | . . 65 1 3 3 . . 15 8 8 3 3 1 26 5 1 7 . . 5 5 27 41 8 1 37 29 5 13 16 Average Corruption 9 | . . 14 1 1 3 . . 6 8 1 3 2 1 14 2 1 6 . . 3 5 7 25 5 1 23 27 3 8 4 Corruption Purged 13 | . . . . . . . . . . 1 . . . . 10 . . . . . . . . . . . . . . 2 Corruption Blocked . | . . . . . . . . . . . . . . . . . . . . . . . . . . . . . . . Effects 761 | . . 55 1 15 15 . . 63 5 15 25 10 3 11 30 8 12 . . 28 6 45 39 12 2 254 34 6 55 12 Message Errors 201 | . . 12 1 6 8 . . 19 1 4 6 4 . 2 10 4 3 . . 7 2 12 10 2 2 67 10 . 7 2 Matter Fused 181 | . . 15 . 4 2 . . 12 2 2 2 2 . 1 7 . 2 . . 5 1 10 5 4 . 74 8 3 13 7 Heat Flow Errors 96 | . . 4 . 3 2 . . 10 1 3 . 1 . 2 2 2 1 . . 4 1 5 6 2 . 32 2 . 12 1 Energy Discharges 89 | . . 6 . . 1 . . 7 . 2 4 . 1 . 9 . 2 . . 3 1 2 5 2 . 28 6 3 7 . Parts Rejected 10 | . . . . . . . . 2 . . 1 . . 1 . . . . . 1 . 2 1 . . . 1 . . 1 Parts Fused 2 | . . . . . . . . 1 . . . . . . . . . . . . . . . . . 1 . . . . Data Loss (minor) 89 | . . 12 . . 1 . . 8 . 3 7 2 1 1 . 1 2 . . 3 . 5 3 1 . 30 2 . 7 . Data Loss (major) 35 | . . 4 . 1 1 . . 1 1 . 2 . 1 1 . 1 1 . . 2 . 5 1 . . 11 . . 2 . Misfires 5 | . . 1 . 1 . . . . . . . . . . 1 . . . . . 1 . . 1 . . . . . . Alerts 17 | . . . . . . . . . . . 3 . . . . . . . . 2 . 1 1 . . 5 3 . 2 . Misdirections 6 | . . . . . . . . . . . . . . 2 . . . . . . . . 1 . . 2 1 . . . Weapon Failures 30 | . . 1 . . . . . 3 . 1 . 1 . 1 1 . 1 . . 1 . 3 6 . . 4 1 . 5 1 Overload Shots 3 | . . . 3 . . . . . . . . . . . . . . . . . . . . . . . . . . . Overflow Damage 17544 | . 37 69 400 101 23 65 56 879 . 1711 846 295 . 1000 295 33 187 . 109 1210 12 823 361 136 1758 1364 680 841 2243 2010 Projectiles 16545 | . . 60 335 101 5 65 56 712 . 1538 816 295 . 1000 92 . 187 . 109 1089 12 779 323 136 1758 1364 680 841 2243 1949 Explosions 921 | . 37 9 65 . 18 . . 155 . 173 30 . . . 203 33 . . . 116 . 44 38 . . . . . . . Melee 78 | . . . . . . . . 12 . . . . . . . . . . . 5 . . . . . . . . . 61 Knockbacks 233 | . . . 12 . 5 1 2 23 . 4 11 6 . 19 3 . 5 . 15 15 . 5 13 17 15 9 2 . . 51 Impact 7 | . . . . . . . . 2 . 1 1 . . . . . . . . . . . . . . . 1 . . 2 Kinetic 200 | . . . 11 . 5 1 2 17 . 3 10 6 . 17 3 . 5 . 14 14 . 5 12 16 12 9 . . . 38 Secondary 26 | . . . 1 . . . . 4 . . . . . 2 . . . . 1 1 . . 1 1 3 . 1 . . 11 Self-Inflicted Damage 1717 | . 47 359 148 . 94 . . 61 . 198 74 . . 100 264 . . . . 130 . 136 22 . 84 . . . . . Shots 43 | . 1 13 4 . 1 . . 1 . 3 2 . . 1 9 . . . . 4 . 2 1 . 1 . . . . . Rammed 40 | . 3 . 1 . 14 3 . 11 . . 3 . . 3 . . . . . 1 . . . . 1 . . . . . Targets Rammed 68 | . 3 . 2 . 17 4 . 20 . 4 4 . . 3 . . . . . 1 . . . 1 1 . 3 1 1 3 Kicked 20 | . . . . . . . . 6 . 4 1 . . . . . . . . . . . . 1 . . 3 1 1 3 Crushed 8 | . . . 1 . 3 1 . 3 . . . . . . . . . . . . . . . . . . . . . . Highest Temperature 520 | . 297 236 356 380 283 . 32 321 120 344 286 284 93 180 347 163 161 . 13 280 259 306 373 242 382 520 122 10 423 514 Average Temperature 92 | . 90 34 77 97 48 . 17 92 64 119 137 109 47 61 105 66 50 . 7 60 39 63 113 108 113 114 64 10 112 133 Received Heat Transfer 8069 | . 84 417 713 495 633 207 81 492 . 444 127 12 9 817 865 18 249 . 216 507 24 89 179 204 114 64 259 39 369 342 Effects 25 | . 3 . 3 . . . . 1 . 2 . . . . . . . . . . . . 1 . 1 8 . . . 6 Shutdowns 2 | . . . 1 . . . . . . . . . . . . . . . . . . . . . . 1 . . . . Energy Bleed 6 | . . . 1 . . . . 1 . 1 . . . . . . . . . . . . 1 . 1 1 . . . . Interference 14 | . 3 . 1 . . . . . . 1 . . . . . . . . . . . . . . . 5 . . . 4 Matter Decay 1 | . . . . . . . . . . . . . . . . . . . . . . . . . . . . . . 1 Damage (major) 1 | . . . . . . . . . . . . . . . . . . . . . . . . . . . . . . 1 Damage (core) 1 | . . . . . . . . . . . . . . . . . . . . . . . . . . 1 . . . . Siege Activations 21 | . . 5 . . . . . . . . . . . . 3 . . . . . . . . . . 8 . . 5 . Total Turns 1831 | . . 1483 . . . . . . . . . . . . 94 . . . . . . . . . . 185 . . 69 . Longest Duration 1436 | . . 1436 . . . . . . . . . . . . 57 . . . . . . . . . . 52 . . 24 . Martial Activations . | . . . . . . . . . . . . . . . . . . . . . . . . . . . . . . . Shielding Activations 6 | . . . . . . . . . . . . . . . . . . . . . . 1 . . . . 3 2 . . Total Turns 126 | . . . . . . . . . . . . . . . . . . . . . . 30 . . . . 72 24 . . Longest Duration 56 | . . . . . . . . . . . . . . . . . . . . . . 30 . . . . 56 15 . . Robots Disrupted 4 | . . . . . . . . 1 . . . . . . . . . . . . 3 . . . . . . . . . Combat Hostiles 3 | . . . . . . . . . . . . . . . . . . . . . 3 . . . . . . . . . Robots Corrupted 126 | . . 5 . . . . . 18 . 15 3 . . 3 4 1 . . . 19 3 7 8 1 9 1 14 . 10 5 Combat Hostiles 110 | . . 3 . . . . . 14 . 12 3 . . . 4 1 . . . 19 3 7 8 . 9 1 14 . 8 4 Parts Fried 464 | . . 6 1 . . . . 85 . 71 10 2 . 8 7 1 . . . 24 . 23 12 2 54 5 50 . 82 21 Impact Corruptions 10 | . . . . . . . . 1 . . . . . . . . . . . 1 . . . 1 4 . . . . 3 Robots Melted 9 | . . . 1 6 . . . . . . . . . . 1 . . . . 1 . . . . . . . . . . Combat Hostiles 9 | . . . 1 6 . . . . . . . . . . 1 . . . . 1 . . . . . . . . . . Parts Melted 64 | . 3 . 4 19 . . . 2 . 2 . . . 1 6 . 1 . . 1 . 2 1 . 3 12 . 2 5 . Heat Transferred 25095 | . 2110 433 2713 5256 . . . 1475 . 850 1100 150 37 . 1676 . 148 . . 1292 250 3772 925 185 666 148 50 823 1036 . Parts Sabotaged 14 | . . . . . . . . . . 1 . . . 3 . . . . . 5 . . . 2 . . . . . 3 Parts Stolen . | . . . . . . . . . . . . . . . . . . . . . . . . . . . . . . . Parts Stripped . | . . . . . . . . . . . . . . . . . . . . . . . . . . . . . . . Power Chain Reactions 18 | . . 2 . . . . . 3 . 3 6 . . . . . . . . . 2 . . . . . 1 1 . . Alert | -11 -10 -10 -8 -8 -8 -8 -8 -6 -6 -6 -6 -6 -6 -6 -5 -5 -5 -5 -4 -4 -4 -4 -4 -4 -3 -3 -3 -2 -2 -2 ------- Run | Yrd Mat Sub Mat Gar Mat Sto Rec Fac Was Fac Ext Cet Arc Hub Fac Upp Upp War Pro Fac Was Fac Gar Arm Res Qua Gar Res Tes Frg Maximum Alert Level 5 | . 1 . 4 5 3 4 1 5 2 4 4 4 2 5 4 . . . . 5 2 5 5 5 5 5 5 5 5 4 Low Security (%) 8 | 100 48 . . . . . 95 19 . . . . . . . . . . . 3 . 13 . . . . . . . . Level 1 5 | . 51 . 11 . 3 6 4 12 . 24 . . . 4 . . . . . 1 . 31 . . . . . . . . Level 2 15 | . . . 37 . 59 34 . 30 100 35 15 . 100 20 10 . . . . 9 100 25 . . 9 . . . 9 . Level 3 26 | . . . 30 15 37 35 . 15 . 27 64 87 . 25 56 . . . . 37 . 12 . . 65 11 . . 53 . Level 4 33 | . . . 19 42 . 23 . 20 . 12 19 12 . 33 32 . . . . 31 . 14 32 70 21 88 8 54 9 100 Level 5 9 | . . . . 41 . . . . . . . . . 15 . . . . . 16 . 2 67 29 1 . 91 45 11 . High Security . | . . . . . . . . . . . . . . . . . . . . . . . . . 2 . . . 16 . Max Security . | . . . . . . . . . . . . . . . . . . . . . . . . . . . . . . . Sterilizations 2 | . . . 1 . 1 . . . . . . . . . . . . . . . . . . . . . . . . . Peak Influence 2785 | . 325 . 1451 2136 1074 1340 264 1672 585 1528 1371 1319 668 1633 1525 . . . . 1789 543 1614 2785 1694 1721 1834 2406 1843 2013 1517 Initial 1461 | . . . 315 941 1041 267 264 150 585 360 746 764 518 195 781 . . . . 51 504 352 1127 1461 855 1100 1375 1353 996 1131 Average 1014 | . 158 . 804 1538 661 827 39 642 552 674 873 951 604 1085 995 . . . . 1144 485 626 1964 1509 1002 1357 2073 1623 1206 1359 Influence Increases 36967 | . 602 833 1852 1285 1052 1694 183 2560 . 1837 1801 957 200 1933 1758 373 504 . 532 3343 169 2260 1708 970 1669 1674 1031 845 2422 920 Destroy 0b10 Robot/C 19460 | . 280 460 1040 740 620 740 40 1320 . 1080 920 380 80 540 1020 300 440 . 420 1700 140 1140 940 440 1100 700 700 520 1160 500 Destroy 0b10 Robot/NC 1115 | . 50 . 95 . 75 65 5 215 . 85 80 10 5 50 45 . . . . 55 . 70 5 5 25 10 . 30 80 55 Destroy Leader 3164 | . 80 10 222 30 188 204 . 278 . 202 106 20 . 130 176 10 40 . 30 306 . 206 40 92 234 164 50 124 146 76 Allied During Kill 3322 | . . 3 66 1 . 548 2 . . . 521 312 85 586 23 48 24 . 52 302 7 135 234 151 8 . . . 189 25 Trap Triggered on 0b10 10 | . . . . . . . . . . . . . . . 10 . . . . . . . . . . . . . . . Successful Hack 287 | . 24 . 20 26 . 12 27 . . 21 28 . . . 33 . . . . 20 . . 12 4 12 48 . . . . Select Force Hacks 180 | . 30 . 60 . . 30 60 . . . . . . . . . . . . . . . . . . . . . . . Disable Machine 2910 | . 75 . 150 30 90 75 30 225 . 270 45 75 30 315 165 . . . . 405 . 240 15 105 60 210 45 15 180 60 Anti-Garrison Action 600 | . . . . 300 . . . . . . . . . . . . . . . . . . 200 . . . 100 . . . Destroy Structure 2648 | . 48 . 124 98 19 5 19 141 . 134 56 15 . 177 226 . . . . 390 22 244 232 98 170 60 16 66 144 144 Advance Influence 150 | . . . . . . . . 150 . . . . . . . . . . . . . . . . . . . . . . Partial Spotted 75 | . . . . . . . . . . 30 . . . . . . . . . 15 . 15 . . . . . . 15 . Lose Combat Pursuer 1830 | . 15 360 75 60 60 15 . 75 . 15 45 15 . 135 60 15 . . 30 150 . 210 30 75 60 . 120 90 60 60 Miscellaneous 1216 | . . . . . . . . 156 . . . 130 . . . . . . . . . . . . . 482 . . 448 . Influence Decreases 35583 | . 388 440 1011 597 2553 1651 861 888 1157 827 1959 1029 937 895 1836 1155 683 557 449 1985 1107 1153 533 2124 1579 1694 459 1479 2181 1416 Entered New Map 16246 | . . 103 292 507 1095 368 414 . 1087 155 779 603 777 363 815 563 141 557 . 32 937 151 483 1324 776 754 459 1053 776 882 Time Decay 12372 | . 378 307 589 . 618 553 407 698 70 642 530 386 140 262 691 592 522 . 359 693 170 502 . 410 713 770 . 416 550 404 Lost Part 850 | . 10 30 90 70 40 . . 20 . 30 . . . 80 140 . 20 . 10 90 . 20 10 20 10 20 . 10 60 70 Lost Ally 1590 | . . . 40 20 . 130 40 20 . . 200 40 20 40 40 . . . 80 220 . 180 40 220 80 . . . 120 60 Purge Threat 4525 | . . . . . 800 600 . 150 . . 450 . . 150 150 . . . . 950 . 300 . 150 . 150 . . 675 . Squads Dispatched 182 | . 3 . 16 . 5 5 . 21 . 14 4 . . 9 15 . 1 . . 23 . 16 . 5 6 7 . 6 21 5 Investigation 25 | . 2 . 3 . . 3 . 2 . 1 1 . . 1 3 . . . . . . 1 . . 1 5 . 1 1 . Extermination 36 | . . . . . . . . 5 . 4 . . . 1 5 . . . . 6 . 2 . 2 . 1 . 2 5 3 Reinforcement 49 | . 1 . 6 . 5 . . 9 . 3 1 . . 2 2 . . . . 4 . 6 . 2 5 . . . 3 . Assault 57 | . . . 4 . . 1 . 4 . 5 2 . . 4 5 . 1 . . 8 . 4 . 1 . 1 . 3 12 2 Garrison 15 | . . . 3 . . 1 . 1 . 1 . . . 1 . . . . . 5 . 3 . . . . . . . . Intercept . | . . . . . . . . . . . . . . . . . . . . . . . . . . . . . . . Searches Triggered . | . . . . . . . . . . . . . . . . . . . . . . . . . . . . . . . Construction Impeded 7 | . . . . . . . . 3 . . 1 . . 1 . . . . . 1 . 1 . . . . . . . . Haulers Reinforced 9 | . . . . . . . . 2 . 1 . . . . 1 . . . . . . 2 . . 3 . . . . . Active Scanning Responses . | . . . . . . . . . . . . . . . . . . . . . . . . . . . . . . . Cargo Convoy Interrupts . | . . . . . . . . . . . . . . . . . . . . . . . . . . . . . . . Stealth | -11 -10 -10 -8 -8 -8 -8 -8 -6 -6 -6 -6 -6 -6 -6 -5 -5 -5 -5 -4 -4 -4 -4 -4 -4 -3 -3 -3 -2 -2 -2 --------- Run | Yrd Mat Sub Mat Gar Mat Sto Rec Fac Was Fac Ext Cet Arc Hub Fac Upp Upp War Pro Fac Was Fac Gar Arm Res Qua Gar Res Tes Frg Distress Signals 46 | . 4 . 3 . 5 2 . 2 . 2 3 1 . 3 . . . . . 3 . 3 . 1 9 . . . 3 2 Communications Jammed 30 | . . . . . . . . . . . . . . . 30 . . . . . . . . . . . . . . . Distress Signals 30 | . . . . . . . . . . . . . . . 30 . . . . . . . . . . . . . . . Times Spotted 1331 | . 21 62 83 40 47 43 13 87 5 61 51 17 3 63 78 13 25 . 22 106 18 81 41 41 76 38 40 31 78 47 Peak Tracking Total 23 | . 5 6 9 4 5 7 5 7 4 6 10 4 2 23 7 7 9 . 5 10 5 9 6 10 7 6 12 6 11 12 Tactical Retreats 76 | . 1 4 4 3 4 1 . 3 . 1 3 1 . 5 3 1 . . 2 7 3 10 2 3 2 . 4 2 3 4 Traps | -11 -10 -10 -8 -8 -8 -8 -8 -6 -6 -6 -6 -6 -6 -6 -5 -5 -5 -5 -4 -4 -4 -4 -4 -4 -3 -3 -3 -2 -2 -2 ------- Run | Yrd Mat Sub Mat Gar Mat Sto Rec Fac Was Fac Ext Cet Arc Hub Fac Upp Upp War Pro Fac Was Fac Gar Arm Res Qua Gar Res Tes Frg Traps Triggered 41 | . 1 1 . 3 2 1 . 3 . 2 . . . 5 1 . . 1 . 2 . 2 3 2 2 3 1 1 5 . Indirectly 3 | . . . . . . . . . . . . . . 3 . . . . . . . . . . . . . . . . Trap Hack Attempts . | . . . . . . . . . . . . . . . . . . . . . . . . . . . . . . . Triggered . | . . . . . . . . . . . . . . . . . . . . . . . . . . . . . . . Disarmed . | . . . . . . . . . . . . . . . . . . . . . . . . . . . . . . . Reprogrammed . | . . . . . . . . . . . . . . . . . . . . . . . . . . . . . . . Reused 1 | . . . . . . . . . . . . . . . 1 . . . . . . . . . . . . . . . Traps Extracted . | . . . . . . . . . . . . . . . . . . . . . . . . . . . . . . . Installed 1 | . . . . . . . . . . . . . . . 1 . . . . . . . . . . . . . . . Triggered 1 | . . . . . . . . . . . . . . . 1 . . . . . . . . . . . . . . . Most Traps Carried 4 | . . 4 . . . . . . . . . . 1 1 1 . . . . . . . . . . . . . . . Machines | -11 -10 -10 -8 -8 -8 -8 -8 -6 -6 -6 -6 -6 -6 -6 -5 -5 -5 -5 -4 -4 -4 -4 -4 -4 -3 -3 -3 -2 -2 -2 ---------- Run | Yrd Mat Sub Mat Gar Mat Sto Rec Fac Was Fac Ext Cet Arc Hub Fac Upp Upp War Pro Fac Was Fac Gar Arm Res Qua Gar Res Tes Frg Machines Disabled 218 | . 5 3 10 7 6 5 2 15 . 18 8 5 2 21 11 . . . 2 27 . 16 4 7 5 15 6 1 12 5 Max in Single Turn 12 | . 2 1 2 2 2 2 1 4 . 7 1 1 1 12 1 . . . 1 2 . 2 1 1 1 1 2 1 1 1 Garrison Access 15 | . . . . . . 1 . 4 . 2 . . . 1 1 . . . . 2 . 1 . . 3 . . . . . Garrison Relay 7 | . . . . 3 . . . . . . . . . . . . . . . . . . 2 . . . 2 . . . Phase Generator 2 | . . . . 1 . . . . . . . . . . . . . . . . . . . . . . 1 . . . Network Hub 1 | . . . . . . . . . . . . . . 1 . . . . . . . . . . . . . . . . Machines Repaired . | . . . . . . . . . . . . . . . . . . . . . . . . . . . . . . . Machines Dismantled . | . . . . . . . . . . . . . . . . . . . . . . . . . . . . . . . Machines Sabotaged . | . . . . . . . . . . . . . . . . . . . . . . . . . . . . . . . Overloaded Fab Kills . | . . . . . . . . . . . . . . . . . . . . . . . . . . . . . . . Hacking | -11 -10 -10 -8 -8 -8 -8 -8 -6 -6 -6 -6 -6 -6 -6 -5 -5 -5 -5 -4 -4 -4 -4 -4 -4 -3 -3 -3 -2 -2 -2 --------- Run | Yrd Mat Sub Mat Gar Mat Sto Rec Fac Was Fac Ext Cet Arc Hub Fac Upp Upp War Pro Fac Was Fac Gar Arm Res Qua Gar Res Tes Frg Machines Accessed 139 | . 8 2 9 3 3 11 9 12 . 11 13 1 . 3 8 2 . . 1 14 . 4 2 1 4 10 3 1 3 1 Terminals 77 | . 6 . 5 3 2 8 5 2 . 3 12 1 . 2 3 . . . 1 5 . 1 2 1 . 7 3 1 3 1 Fabricators 5 | . . . . . . . . . . 2 . . . . 1 . . . . 2 . . . . . . . . . . Repair Stations 4 | . . . . . . 1 . . . 1 . . . . 1 . . . . 1 . . . . . . . . . . Recycling Units 20 | . 2 . 2 . . 1 3 5 . 2 1 . . . 1 . . . . 3 . . . . . . . . . . Scanalyzers 9 | . . . 1 . 1 . . 1 . 1 . . . . 1 . . . . . . 1 . . 1 2 . . . . Garrison Access 19 | . . . 1 . . 1 . 4 . 2 . . . 1 1 . . . . 3 . 2 . . 3 1 . . . . Total Hacks 327 | . 21 6 21 5 9 21 28 27 . 22 33 1 . 6 19 2 . . 7 30 . 9 2 5 6 26 6 1 11 3 Successful 156 | . 12 6 13 2 4 13 21 15 . 8 10 . . 2 7 2 . . 7 10 . 5 1 2 5 8 1 . 2 . Failed 166 | . 9 . 7 3 4 8 6 11 . 14 23 1 . 4 12 . . . . 20 . 3 1 3 1 18 5 1 9 3 Catastrophic 39 | . . . . 2 . . 1 4 . 4 5 1 . 2 2 . . . . 4 . . . 2 . 6 1 1 3 1 Database Lockouts 5 | . . . 1 . 1 . 1 1 . . . . . . . . . . . . . 1 . . . . . . . . Manual 149 | . 14 . 12 1 3 8 23 5 . 9 6 1 . 5 8 . . . . 15 . 4 1 3 . 15 5 1 7 3 Terminals 200 | . 17 . 12 5 5 16 15 5 . 6 29 1 . 5 8 . . . 7 17 . 4 2 5 . 20 6 1 11 3 Fabricators 13 | . . . . . . . . . . 5 . . . . 3 . . . . 5 . . . . . . . . . . Repair Stations 6 | . . . . . . 2 . . . 2 . . . . 1 . . . . 1 . . . . . . . . . . Recycling Units 54 | . 4 . 6 . . 2 11 13 . 5 4 . . . 5 . . . . 4 . . . . . . . . . . Scanalyzers 25 | . . . 2 . 4 . . 5 . 2 . . . . 1 . . . . . . 3 . . 3 5 . . . . Garrison Access 19 | . . . 1 . . 1 . 4 . 2 . . . 1 1 . . . . 3 . 2 . . 3 1 . . . . Terminal Hacks 63 | . 4 6 4 1 1 7 5 1 . . 9 . . 1 2 2 . . 7 3 . 1 1 2 . 3 1 . 2 . Record 12 | . . 5 . . . . . . . . . . . . . . . . 7 . . . . . . . . . . . Robot Analysis 1 | . . . . . . 1 . . . . . . . . . . . . . . . . . . . . . . . . Prototype ID Bank 11 | . 3 . 2 . . 1 3 . . . 1 . . . . . . . . . . . . . . 1 . . . . Open Door 12 | . . . . . . 4 . . . . 5 . . . . 2 . . . . . . . . . 1 . . . . Branch Access Points 1 | . . . . . . . . . . . . . . . 1 . . . . . . . . . . . . . . . Emergency Access Points 1 | . . . . 1 . . . . . . . . . . . . . . . . . . . . . . . . . . Alert Level 3 | . 1 . 2 . . . . . . . . . . . . . . . . . . . . . . . . . . . Unreport Threat 15 | . . . . . 1 1 . 1 . . 3 . . 1 1 . . . . 2 . 1 . 1 . 1 . . 2 . Locate Traps 1 | . . . . . . . . . . . . . . . . . . . . . . . . 1 . . . . . . Patrol Status 1 | . . . . . . . . . . . . . . . . . . . . 1 . . . . . . . . . . Garrison Registry 2 | . . . . . . . . . . . . . . . . . . . . . . . 1 . . . 1 . . . Proto ID Catalog 1 | . . 1 . . . . . . . . . . . . . . . . . . . . . . . . . . . . Release Object 2 | . . . . . . . 2 . . . . . . . . . . . . . . . . . . . . . . . Fabricator Hacks 4 | . . . . . . . . . . 1 . . . . 1 . . . . 2 . . . . . . . . . . Network Status 3 | . . . . . . . . . . 1 . . . . 1 . . . . 1 . . . . . . . . . . Build 1 | . . . . . . . . . . . . . . . . . . . . 1 . . . . . . . . . . Repair Station Hacks 2 | . . . . . . 2 . . . . . . . . . . . . . . . . . . . . . . . . Scan Component 1 | . . . . . . 1 . . . . . . . . . . . . . . . . . . . . . . . . Repair 1 | . . . . . . 1 . . . . . . . . . . . . . . . . . . . . . . . . Recycling Unit Hacks 19 | . 1 . 2 . . 1 3 7 . 2 1 . . . 1 . . . . 1 . . . . . . . . . . Retrieve Components 19 | . 1 . 2 . . 1 3 7 . 2 1 . . . 1 . . . . 1 . . . . . . . . . . Scanalyzer 14 | . . . 1 . 3 . . 3 . 1 . . . . . . . . . . . 2 . . 2 2 . . . . Retrieve Study 14 | . . . 1 . 3 . . 3 . 1 . . . . . . . . . . . 2 . . 2 2 . . . . Garrison Access Hacks 19 | . . . 1 . . 1 . 4 . 2 . . . 1 1 . . . . 3 . 2 . . 3 1 . . . . Unlock Access 5 | . . . 1 . . . . . . . . . . 1 . . . . . 1 . 1 . . . 1 . . . . Seal Access 14 | . . . . . . 1 . 4 . 2 . . . . 1 . . . . 2 . 1 . . 3 . . . . . Unauthorized Hacks 34 | . 7 . 5 1 . 2 12 . . 2 . . . . 2 . . . . 1 . . . . . 2 . . . . Terminals 20 | . 6 . 3 1 . 1 6 . . . . . . . . . . . . 1 . . . . . 2 . . . . Botnet 7 | . 1 . . 1 . 1 2 . . . . . . . . . . . . . . . . . . 2 . . . . Operators 1 | . . . . . . . . . . . . . . . . . . . . 1 . . . . . . . . . . Skim 12 | . 5 . 3 . . . 4 . . . . . . . . . . . . . . . . . . . . . . . Fabricators 3 | . . . . . . . . . . 2 . . . . 1 . . . . . . . . . . . . . . . Prioritize 1 | . . . . . . . . . . 1 . . . . . . . . . . . . . . . . . . . . Liberate 1 | . . . . . . . . . . 1 . . . . . . . . . . . . . . . . . . . . Haulers 1 | . . . . . . . . . . . . . . . 1 . . . . . . . . . . . . . . . Repair Stations 1 | . . . . . . . . . . . . . . . 1 . . . . . . . . . . . . . . . Mechanics 1 | . . . . . . . . . . . . . . . 1 . . . . . . . . . . . . . . . Recycling Units 10 | . 1 . 2 . . 1 6 . . . . . . . . . . . . . . . . . . . . . . . Reject 3 | . . . . . . . 3 . . . . . . . . . . . . . . . . . . . . . . . Mask 1 | . . . . . . . 1 . . . . . . . . . . . . . . . . . . . . . . . Tunnel 6 | . 1 . 2 . . 1 2 . . . . . . . . . . . . . . . . . . . . . . . Scanalyzers . | . . . . . . . . . . . . . . . . . . . . . . . . . . . . . . . Garrison Access . | . . . . . . . . . . . . . . . . . . . . . . . . . . . . . . . Data Cores Recovered 7 | . . . 3 . 1 . . 1 . 1 . . . . . . . . . . . . . . . . . . . 1 Used 2 | . . . 1 . . . . . . 1 . . . . . . . . . . . . . . . . . . . . Hacking Detections 86 | . 6 . 4 2 3 7 6 7 . 9 10 1 . 3 3 . . . . 9 . . 1 1 1 7 1 1 3 1 Full Trace Events 9 | . . . 1 . . 1 1 1 . 1 1 . . . 1 . . . . . . . . . . 2 . . . . Feedback Events 1 | . . . . . . . . . . . . . . . . . . . . . . . . . . 1 . . . . Hackware Fried 1 | . . . . . . . . . . . . . . . . . . . . . . . . . . 1 . . . . Feedback Blocked . | . . . . . . . . . . . . . . . . . . . . . . . . . . . . . . . Robot Schematics Acquired 4 | . . . . . . . . . . . . . . . . . . . . . . . . . . 2 . . 2 . Robots Built . | . . . . . . . . . . . . . . . . . . . . . . . . . . . . . . . Authchips . | . . . . . . . . . . . . . . . . . . . . . . . . . . . . . . . Time . | . . . . . . . . . . . . . . . . . . . . . . . . . . . . . . . Total Robot Build Rating . | . . . . . . . . . . . . . . . . . . . . . . . . . . . . . . . Part Schematics Acquired 11 | . . . . . . . . . . . . . . . . . . . . . . . . . . 2 . . 9 . Parts Built 1 | . . . . . . . . . . . . . . . . . . . . 1 . . . . . . . . . . Authchips . | . . . . . . . . . . . . . . . . . . . . . . . . . . . . . . . Time 222 | . . . . . . . . . . . . . . . . . . . . 222 . . . . . . . . . . Total Part Build Rating 9 | . . . . . . . . . . . . . . . . . . . . 9 . . . . . . . . . . Part Studies Acquired 14 | . . . 1 . 3 . . 3 . 1 . . . . . . . . . . . 2 . . 2 2 . . . . Parts Repaired 1 | . . . . . . 1 . . . . . . . . . . . . . . . . . . . . . . . . Time 56 | . . . . . . 56 . . . . . . . . . . . . . . . . . . . . . . . . Parts Recycled . | . . . . . . . . . . . . . . . . . . . . . . . . . . . . . . . Recycled Matter . | . . . . . . . . . . . . . . . . . . . . . . . . . . . . . . . Retrieved Matter . | . . . . . . . . . . . . . . . . . . . . . . . . . . . . . . . Retrieved Components 87 | . 9 . 20 . . 10 4 8 . 18 10 . . . 6 . . . . 2 . . . . . . . . . . Parts Scanalyzed . | . . . . . . . . . . . . . . . . . . . . . . . . . . . . . . . Part Schematics Acquired . | . . . . . . . . . . . . . . . . . . . . . . . . . . . . . . . Parts Damaged . | . . . . . . . . . . . . . . . . . . . . . . . . . . . . . . . Bothacking | -11 -10 -10 -8 -8 -8 -8 -8 -6 -6 -6 -6 -6 -6 -6 -5 -5 -5 -5 -4 -4 -4 -4 -4 -4 -3 -3 -3 -2 -2 -2 ------------ Run | Yrd Mat Sub Mat Gar Mat Sto Rec Fac Was Fac Ext Cet Arc Hub Fac Upp Upp War Pro Fac Was Fac Gar Arm Res Qua Gar Res Tes Frg Used RIF Installer 3 | . . . . 1 . . . . . . . . . . . . . . . . . . 1 . . . 1 . . . Patrol Navigation 1 | . . . . . . . . . . . . . . . . . . . . . . . 1 . . . . . . . Alert ID Control 1 | . . . . . . . . . . . . . . . . . . . . . . . . . . . 1 . . . Autoassimilate 1 | . . . . 1 . . . . . . . . . . . . . . . . . . . . . . . . . . Robots Hacked 16 | . . . . . 3 2 . 1 . . . . . . . . . . . 5 . 4 . . . . . . 1 . Non-combat 16 | . . . . . 3 2 . 1 . . . . . . . . . . . 5 . 4 . . . . . . 1 . Combat . | . . . . . . . . . . . . . . . . . . . . . . . . . . . . . . . Robot Hacks Applied 39 | . . . . . 10 5 . 1 . . . . . . . . . . . 14 . 5 . . . . . . 4 . drop_inventory 8 | . . . . . 1 . . . . . . . . . . . . . . 4 . 3 . . . . . . . . locate_stockpiles 1 | . . . . . . . . . . . . . . . . . . . . . . 1 . . . . . . . . purge_threat 24 | . . . . . 8 4 . . . . . . . . . . . . . 8 . 1 . . . . . . 3 . disarm_traps 1 | . . . . . 1 . . . . . . . . . . . . . . . . . . . . . . . . . block_reporting 2 | . . . . . . . . . . . . . . . . . . . . 1 . . . . . . . . 1 . map_route 1 | . . . . . . . . 1 . . . . . . . . . . . . . . . . . . . . . . formatsys_low 2 | . . . . . . 1 . . . . . . . . . . . . . 1 . . . . . . . . . . Relay Couplers Released 47 | . . . . 11 . . . 1 . . . . . 3 2 . . . . 2 . . 10 . 6 . 12 . . . Machine Destruction 43 | . . . . 11 . . . 1 . . . . . 3 2 . . . . 2 . . 10 . 6 . 8 . . . Programmers 4 | . . . . . . . . . . . . . . . . . . . . . . . . . . . 4 . . . Attached 6 | . . . . . 2 . . 1 . . . . . . 1 . . . . 1 . . . . . . . . 1 . Fabnet Peak Effective % . | . . . . . . . . . . . . . . . . . . . . . . . . . . . . . . . Robots Rewired 29 | . . . . . . . . . . . 10 . . . . . 5 . . 1 . . 7 4 . . . . 2 . Allies Hacked 3 | . . . . . . . . . . . . . . . . . . . . . . 3 . . . . . . . . Hacks Repelled . | . . . . . . . . . . . . . . . . . . . . . . . . . . . . . . . Allies | -11 -10 -10 -8 -8 -8 -8 -8 -6 -6 -6 -6 -6 -6 -6 -5 -5 -5 -5 -4 -4 -4 -4 -4 -4 -3 -3 -3 -2 -2 -2 -------- Run | Yrd Mat Sub Mat Gar Mat Sto Rec Fac Was Fac Ext Cet Arc Hub Fac Upp Upp War Pro Fac Was Fac Gar Arm Res Qua Gar Res Tes Frg Total Allies 120 | . . 1 3 . . 11 . . . . 28 5 . . 3 3 5 . . 15 4 11 9 5 4 . . . 7 6 Largest Group 10 | . . 1 3 1 . 10 4 1 . . 9 10 10 8 3 3 5 5 5 9 4 5 7 10 4 . . . 3 3 Highest-Rated Group 766 | . . 90 111 37 . 173 64 16 . . 463 766 766 589 168 117 168 168 168 495 130 235 383 482 120 . . . 192 243 Highest-Rated Ally 159 | . . 90 37 37 . 29 16 16 . . 159 159 143 96 56 39 49 49 49 56 34 54 99 119 30 . . . 90 81 Total Orders 4 | . . . . . . 1 . . . . . . . . . . . . . . . . . . . . . . 3 . STAY 2 | . . . . . . . . . . . . . . . . . . . . . . . . . . . . . 2 . FOLLOW 1 | . . . . . . . . . . . . . . . . . . . . . . . . . . . . . 1 . AID 1 | . . . . . . 1 . . . . . . . . . . . . . . . . . . . . . . . . Ally Attacks 1155 | . . 12 26 1 . 160 35 2 . . 178 100 22 87 17 20 22 . 26 127 32 55 39 68 42 . . . 69 15 Total Damage 28006 | . . 561 634 . . 1831 408 30 . . 3616 1972 494 3532 583 307 525 . 681 3987 511 1517 1413 1953 763 . . . 2167 521 Kills 180 | . . 5 8 . . 24 5 . . . 20 12 3 20 4 3 1 . 5 28 1 10 11 12 . . . . 7 1 Allies Corrupted 10 | . . . . . . . . . . . . . . 4 1 . . . 1 . . 1 . 1 . . . . 1 1 Allies Melted 1 | . . . . . . . . . . . 1 . . . . . . . . . . . . . . . . . . . X0-1V1 Amusement Gains 715 | . 7 74 85 . . 20 . . . 70 40 . . 83 20 . . 60 . 72 . . . . 49 35 50 . 50 . Average Entertainment 57 | . 7 4 49 100 100 68 55 27 8 20 57 57 35 68 67 43 20 70 53 85 100 100 100 100 94 56 65 80 81 55 Good Acts 487 | . . 153 9 7 12 8 17 21 1 14 11 4 3 8 10 10 11 . 8 33 8 8 15 7 19 34 8 13 20 15 Bad Acts 354 | . . 161 7 5 10 4 3 23 1 11 2 6 . 1 12 4 7 . 3 5 3 7 2 . 1 42 12 4 13 5 Intel | -11 -10 -10 -8 -8 -8 -8 -8 -6 -6 -6 -6 -6 -6 -6 -5 -5 -5 -5 -4 -4 -4 -4 -4 -4 -3 -3 -3 -2 -2 -2 ------- Run | Yrd Mat Sub Mat Gar Mat Sto Rec Fac Was Fac Ext Cet Arc Hub Fac Upp Upp War Pro Fac Was Fac Gar Arm Res Qua Gar Res Tes Frg Active Infowar (turns) 14259 | . . . . . . . . 1 . 1909 1481 909 293 357 273 . . . . 2214 357 1356 1782 997 2328 2 . . . . Optics 13983 | . . . . . . . . . . 1909 1481 909 293 357 . . . . . 2214 357 1356 1782 997 2328 . . . . . Sensors 3 | . . . . . . . . 1 . . . . . . . . . . . . . . . . . 2 . . . . IFF 1 | . . . . . . . . . . . . . . . . . . . . 1 . . . . . . . . . . Jamming 273 | . . . . . . . . . . . . . . . 273 . . . . . . . . . . . . . . . ECM 1 | . . . . . . . . . . . 1 . . . . . . . . . . . . . . . . . . . Robot Analysis Total 1 | . . . . . . 1 . . . . . . . . . . . . . . . . . . . . . . . . Derelict Logs Recovered 7 | . . 2 . . . . . . . . . . . . . 1 2 . 2 . . . . . . . . . . . Drone Launches . | . . . . . . . . . . . . . . . . . . . . . . . . . . . . . . . Drone Recoveries . | . . . . . . . . . . . . . . . . . . . . . . . . . . . . . . . Exploration | -11 -10 -10 -8 -8 -8 -8 -8 -6 -6 -6 -6 -6 -6 -6 -5 -5 -5 -5 -4 -4 -4 -4 -4 -4 -3 -3 -3 -2 -2 -2 ------------- Run | Yrd Mat Sub Mat Gar Mat Sto Rec Fac Was Fac Ext Cet Arc Hub Fac Upp Upp War Pro Fac Was Fac Gar Arm Res Qua Gar Res Tes Frg Turns Passed 56561 | 74 1004 7125 1850 1501 2078 1615 2529 2955 148 2313 1481 909 293 565 2805 1863 1452 232 1276 2855 357 1356 1782 997 3346 7138 782 1000 1904 976 Spaces Moved 27708 | 54 468 1903 849 883 1059 750 791 2294 133 1420 809 357 113 191 887 914 947 79 790 1771 390 1315 822 392 1409 3013 379 519 1365 642 Core 24 | 24 . . . . . . . . . . . . . . . . . . . . . . . . . . . . . . Treads 12694 | 30 468 1903 598 . 635 750 769 1775 . . 337 74 . . 151 483 206 . . 1067 . 368 . . 810 1087 78 106 999 . Legs 10306 | . . . 251 883 424 . . 431 133 1420 472 68 . . 614 363 161 . 164 633 . 344 . 60 599 1856 301 398 366 365 Wheels 661 | . . . . . . . 14 . . . . 108 113 191 56 . . . . 8 . . . 156 . . . 15 . . Hover 2628 | . . . . . . . 8 88 . . . 107 . . 66 22 580 79 626 24 . 8 822 176 . 22 . . . . Flight 1395 | . . . . . . . . . . . . . . . . 46 . . . 39 390 595 . . . 48 . . . 277 Fastest Speed 36 | 50 160 152 130 130 130 153 163 72 110 110 107 70 199 199 160 87 87 142 120 77 36 36 97 149 86 80 99 83 65 51 Average Speed 143 | 111 160 165 155 130 142 170 228 90 110 124 126 141 199 206 241 194 131 142 137 122 44 57 151 186 202 181 99 120 101 71 Slowest Speed 412 | 160 160 240 270 200 305 233 385 201 110 126 157 199 199 277 338 263 275 142 142 175 128 128 259 259 276 412 99 234 123 195 Overloaded Moves 710 | . . . . . . . . . . . . . . . . . . . . . 356 354 . . . . . . . . Propulsion Burnouts . | . . . . . . . . . . . . . . . . . . . . . . . . . . . . . . . Robots Hopped 1 | . . . . . . . . . . . . . . . . . . . . . . . . . . . . . . 1 Potential Cave-ins 9 | . . . 2 . . . . . . . . . . . . . . . . 4 . . 3 . . . . . . . Cave-ins Triggered 1 | . . . . . . . . . . . . . . . . . . . . . . 1 . . . . . . . . Exploration Rate (%) 65 | 3 96 84 77 85 74 94 97 49 93 41 90 85 87 25 22 97 95 16 89 57 88 41 73 38 43 98 71 13 97 23 Regions Visited 30 Branch Regions 15 Pre-discovered Areas 10 | . 1 3 2 . . 1 2 . . . . . . . . . . . 1 . . . . . . . . . . . Known Exits Taken 17 | . 1 1 1 . 1 1 1 . . 1 1 . 1 . 1 1 . . . . . 1 . 1 1 1 . 1 1 . Unknown Exits Taken 6 | 1 . . . . . . . . . . . 1 . 1 . . 1 1 1 . . . . . . . . . . . Scrap Searched 17 | . . 6 . . . . . . . . . . . . . 4 3 . 4 . . . . . . . . . . . Spaces Dug 212 | . . 1 18 . . . 12 18 . 18 . . . 6 13 . . . 1 30 . 1 8 12 18 16 . 3 30 7 Terrain Destroyed 2061 | . 53 286 141 79 18 3 19 139 . 138 49 7 . 170 147 40 18 . 28 185 18 110 100 55 84 30 8 20 58 58 Melee . | . . . . . . . . . . . . . . . . . . . . . . . . . . . . . . . Projectile 830 | . . 15 76 5 13 3 19 83 . 42 20 7 . 28 36 . 18 . 28 73 2 69 36 55 67 30 4 15 58 28 AOE 1230 | . 53 271 65 74 4 . . 56 . 96 29 . . 142 111 40 . . . 112 16 41 64 . 17 . 4 5 . 30 Terrain Rammed . | . . . . . . . . . . . . . . . . . . . . . . . . . . . . . . . Walls Destroyed . | . . . . . . . . . . . . . . . . . . . . . . . . . . . . . . . Machines Disabled . | . . . . . . . . . . . . . . . . . . . . . . . . . . . . . . . Actions | -11 -10 -10 -8 -8 -8 -8 -8 -6 -6 -6 -6 -6 -6 -6 -5 -5 -5 -5 -4 -4 -4 -4 -4 -4 -3 -3 -3 -2 -2 -2 --------- Run | Yrd Mat Sub Mat Gar Mat Sto Rec Fac Was Fac Ext Cet Arc Hub Fac Upp Upp War Pro Fac Was Fac Gar Arm Res Qua Gar Res Tes Frg Total 41703 | 66 633 5725 1148 1060 1405 980 1481 3000 134 1823 1149 736 181 296 1332 995 1091 199 930 2306 498 1901 1258 590 1769 4578 729 832 1829 1049 Wait 9053 | . 68 3601 63 62 142 140 587 374 1 182 126 305 56 30 155 25 24 121 72 207 11 222 133 12 71 1297 273 228 231 234 Move 27678 | 53 467 1902 848 882 1058 749 790 2294 132 1419 808 356 112 190 886 913 946 78 789 1771 389 1314 821 391 1408 3012 378 518 1364 640 Hop 1 | . . . . . . . . . . . . . . . . . . . . . . . . . . . . . . 1 Pick Up 433 | 7 18 23 25 7 15 5 22 35 1 28 8 20 3 3 30 12 8 . 7 31 3 18 14 1 27 38 2 2 9 11 Fast Attach 190 | 5 6 . 8 5 7 1 3 16 . 6 3 1 . . 14 5 . . . 24 3 8 2 6 20 18 1 6 9 13 Attach 152 | 1 1 10 16 5 6 1 1 7 . 4 4 . . 2 29 2 2 . 1 12 3 4 8 . 8 11 3 2 4 5 Detach 70 | . 1 6 5 1 . . 7 6 . . 1 . . . 16 7 1 . . 3 2 3 4 . 3 . . . 2 2 Swap 148 | . 6 8 5 2 18 9 1 7 . 9 3 1 . 6 9 1 1 . 1 15 . 7 9 1 17 10 . 1 . 1 Drop 543 | . 15 49 15 7 20 5 37 46 . 27 8 19 6 1 26 16 7 . 7 33 4 24 13 3 47 66 4 9 14 15 Fire 3017 | . 48 126 141 89 122 66 33 195 . 144 119 34 4 61 166 14 64 . 53 209 83 301 148 71 163 125 64 65 185 124 Melee . | . . . . . . . . . . . . . . . . . . . . . . . . . . . . . . . Ram 4 | . . . . . . . . . . . . . . 3 . . . . . . . . . . . 1 . . . . Kick 20 | . . . . . . . . 6 . 4 1 . . . . . . . . . . . . 1 . . 3 1 1 3 Crush 45 | . 3 . 2 . 17 4 . 14 . . 3 . . . . . . . . 1 . . . . 1 . . . . . Escape Stasis 31 | . . . . . . . . . . . . . . . . . . . . . . . 26 . 4 . 1 . . . Rewire 297 | . . . . . . . . . . . 65 . . . . . 38 . . . . . 80 104 . . . . 10 . Trap 1 | . . . . . . . . . . . . . . . 1 . . . . . . . . . . . . . . . Miscellaneous 20 | . . . 20 . . . . . . . . . . . . . . . . . . . . . . . . . . . Route ------- -11/Scrapyard -10/Materials (discovered 5 exits: [*Mat x3] / [*Min] / *Sub) -10/Subcaves (discovered 2 exits: *Mat / *Rec) -8/Materials (discovered 5 exits: *Fac x3 / *Sto / Gar) -8/Garrison (discovered 3 exits: *Mat x3) -8/Materials (discovered 3 exits: *Fac x2 / *Sto) -8/Storage (discovered 2 exits: *Fac / *Rec) -8/Recycling -6/Factory (discovered 6 exits: *Fac x2 / *Low x2 / *Ext x2) -6/Waste -6/Factory (discovered 5 exits: *Fac x2 / *Low x2 / *Ext) -6/Extension (discovered 2 exits: *Fac / *Cet) -6/Cetus (discovered 2 exits: *Fac / [*Arc]) -6/Archives (discovered 3 exits: *Fac / *Hub x2) -6/Hub_04(d) -5/Factory (discovered 2 exits: *Upp x2) -5/Upper Caves -5/Upper Caves (discovered 2 exits: *Fac / [*War]) -5/Warlord -4/Proximity Caves -4/Factory (discovered 7 exits: *Res x4 / *Upp x2 / Gar) -4/Waste -4/Factory (discovered 4 exits: *Res x2 / *Upp / Gar) -4/Garrison (discovered 3 exits: *Arm x3) -4/Armory (discovered 2 exits: *Res x2) -3/Research (discovered 5 exits: *Res x3 / *Qua x2) -3/Quarantine (discovered 2 exits: *Res / Gar) -3/Garrison (discovered 3 exits: *Res x3) -2/Research (discovered 4 exits: *Acc x2 / *Tes x2) -2/Testing (discovered 3 exits: *Acc / [*Sec] / *Frg) -2/Protoforge (discovered 1 exit: *Acc) History --------- Turn | Location | Event 11 | -11/Scrapyard | Discovered new exit (range 15) 75 | -11/Scrapyard | Entered Materials 299 | -10/Materials | Discovered new exit (range 16) 305 | -10/Materials | Build established: Mutant 418 | -10/Materials | Discovered new exit (range 3) 731 | -10/Materials | Discovered new exit (range 14) 814 | -10/Materials | Learned Recycling recycling unit intel 869 | -10/Materials | Learned 2 Mines zone layouts 915 | -10/Materials | Learned location of 2 exits from Subcaves 970 | -10/Materials | Discovered new exit (range 10) 977 | -10/Materials | Learned Storage emergency access door positions 1013 | -10/Materials | Identified exit to Subcaves 1013 | -10/Materials | Learned location of 2 exits from Materials 1061 | -10/Materials | Learned location of 3 exits from Materials 1069 | -10/Materials | Prayed at D.C.S.S. Altar Unit 1079 | -10/Materials | Entered Subcaves 1080 | -10/Subcaves | Identified exit to Materials 1172 | -10/Subcaves | Ambushed by Subdwellers from Twisted Machinery 1346 | -10/Subcaves | Disturbed a concealed Subdweller 1488 | -10/Subcaves | Core integrity permanently improved by X0-1V1 (+200) 1507 | -10/Subcaves | Visited 4L-MR0's lab 1528 | -10/Subcaves | Found Powered Cannon 1529 | -10/Subcaves | X0-1V1 activates XOMVISION 1797 | -10/Subcaves | Identified exit to Recycling 1797 | -10/Subcaves | X0-1V1 revealed exit location to -8/Recycling 1805 | -10/Subcaves | X0-1V1 caused items to flee you 1977 | -10/Subcaves | Core integrity restored by X0-1V1 (+81) 2069 | -10/Subcaves | Items stopped fleeing you 2083 | -10/Subcaves | Forcibly received Sfc. Transmogifier from X0-1V1 2090 | -10/Subcaves | X0-1V1 activates XOMVISION 2151 | -10/Subcaves | System corruption reached 10% 2163 | -10/Subcaves | Weapon slot count temporarily expanded by X0-1V1 (+3) 2170 | -10/Subcaves | X0-1V1 sent hostile G-34 Mercenary (x5) 2517 | -10/Subcaves | Visited Clippyterm 2522 | -10/Subcaves | Learned location of Extension (-6) 2861 | -10/Subcaves | Weapon slot count reverted to normal (-3) 3481 | -10/Subcaves | X0-1V1 activates XOMVISION 3614 | -10/Subcaves | X0-1V1 sent hostile G-34 Mercenary (x5) 3664 | -10/Subcaves | X0-1V1 collapsed Materials access 3674 | -10/Subcaves | X0-1V1 activates XOMVISION 3699 | -10/Subcaves | X0-1V1 sent hostile S-10 Pest (x4) 3706 | -10/Subcaves | X0-1V1 sent allied H-61 Shepherd (x1) 3717 | -10/Subcaves | X0-1V1 sent you into danger 3727 | -10/Subcaves | X0-1V1 rewrote H-61 Shepherd IFF filter 3733 | -10/Subcaves | Ambushed by Subdweller buried in earth 3804 | -10/Subcaves | Core integrity restored by X0-1V1 (+126) 4075 | -10/Subcaves | Ambushed by Subdwellers from Twisted Machinery 4200 | -10/Subcaves | Shifting Twisted Machinery released Mak. Thermal Plating 4203 | -10/Subcaves | Shifting Twisted Machinery released Flamer 4243 | -10/Subcaves | A swath of the cavern ceiling suddenly collapsed 4377 | -10/Subcaves | Learned location of Zion (-6) 4848 | -10/Subcaves | Shifting Twisted Machinery released Shrapnel Trap 4866 | -10/Subcaves | Shifting Twisted Machinery released Spk. Treads 4937 | -10/Subcaves | Learned location of Storage (-8) 5295 | -10/Subcaves | A swath of the cavern ceiling suddenly collapsed 5609 | -10/Subcaves | X0-1V1 activates XOMVISION 5864 | -10/Subcaves | X0-1V1 activates XOMVISION 6118 | -10/Subcaves | X0-1V1 activates XOMVISION 6150 | -10/Subcaves | X0-1V1 sent you into danger 6156 | -10/Subcaves | Core integrity restored by X0-1V1 (+117) 6430 | -10/Subcaves | X0-1V1 activates XOMVISION 6650 | -10/Subcaves | X0-1V1 activates XOMVISION 6949 | -10/Subcaves | X0-1V1 activates XOMVISION 7280 | -10/Subcaves | X0-1V1 activates XOMVISION 7459 | -10/Subcaves | X0-1V1 activates XOMVISION 7518 | -10/Subcaves | System corruption reached 30% 7777 | -10/Subcaves | X0-1V1 activates XOMVISION 8204 | -10/Subcaves | Entered Materials 8204 | -8/Materials | Evolved 4 slots: Propulsion x1, Utility x2, Weapon x1 8205 | -8/Materials | Identified exit to Factory 8205 | -8/Materials | Identified exit to Storage 8395 | -8/Materials | Identified exit to Garrison 8410 | -8/Materials | Garrison activated, responded to threat 8469 | -8/Materials | Destroyed 8 combat bots 8578 | -8/Materials | X0-1V1 upgraded hostiles (x3) 8581 | -8/Materials | Attached Powered Cannon, gained temporary slot: Power 8604 | -8/Materials | First assault squad dispatched 8623 | -8/Materials | Destroyed 8 combat bots 8630 | -8/Materials | Lost 9 parts (4n1u4w) 8699 | -8/Materials | X0-1V1 upgraded hostiles (x1) 8736 | -8/Materials | Inventory capacity permanently improved by X0-1V1 (+2; -200 max core) 8744 | -8/Materials | X0-1V1 announced a LAN party 8892 | -8/Materials | Build established: Scavenger-Tank 9152 | -8/Materials | Destroyed 7 combat bots 9214 | -8/Materials | X0-1V1 activates XOMVISION 9372 | -8/Materials | X0-1V1 sent you to a vault 9470 | -8/Materials | Central database locked down 9604 | -8/Materials | X0-1V1 activates XOMVISION 9765 | -8/Materials | Build established: Gunner 9976 | -8/Materials | X0-1V1 redirected Transport squads to designated parking area 9989 | -8/Materials | Sterilization system engaged 9989 | -8/Materials | Non-combat units ordered to evacuate 10054 | -8/Materials | Entered Garrison 10054 | -8/Garrison | Accompanied by 1 ally 10077 | -8/Garrison | Melee accuracy permanently improved by X0-1V1 (+5%; -50 max core) 10130 | -8/Garrison | Triggered checkpoint 10182 | -8/Garrison | Triggered checkpoint 10280 | -8/Garrison | Garrison Relay disabled 10354 | -8/Garrison | X0-1V1 sent you into danger 10410 | -8/Garrison | X0-1V1 sent hostile G-34 Mercenary (x3) 10441 | -8/Garrison | Discovered new exit (range 10) 10483 | -8/Garrison | Triggered checkpoint 10530 | -8/Garrison | Triggered checkpoint 10552 | -8/Garrison | Garrison Relay disabled 10664 | -8/Garrison | Triggered checkpoint 10699 | -8/Garrison | Installed Relay Interface Framework 10718 | -8/Garrison | Garrison Relay disabled 10778 | -8/Garrison | Triggered checkpoint 10817 | -8/Garrison | X0-1V1 caused items to flee you 10947 | -8/Garrison | Discovered new exit (range 14) 10965 | -8/Garrison | Phase Generator disabled 10977 | -8/Garrison | Items stopped fleeing you 10979 | -8/Garrison | Core integrity fell below 50% 11277 | -8/Garrison | X0-1V1 vaporized surrounding terrain (radius 16) 11326 | -8/Garrison | Triggered checkpoint 11403 | -8/Garrison | Triggered checkpoint 11477 | -8/Garrison | Expanded RIF knowledge: Autoassimilate 11484 | -8/Garrison | Discovered new exit (range 8) 11553 | -8/Garrison | Core integrity restored by X0-1V1 (+80) 11555 | -8/Garrison | Entered Materials 11680 | -8/Materials | X0-1V1 vaporized surrounding terrain (radius 23) 11796 | -8/Materials | X0-1V1 activates XOMVISION 11947 | -8/Materials | Central database locked down 12690 | -8/Materials | X0-1V1 downgraded hostiles (x1) 12918 | -8/Materials | X0-1V1 made a cryptic comment about sterilization and BL-4Z3 12981 | -8/Materials | X0-1V1 sent you into danger 13060 | -8/Materials | Sterilization system engaged 13060 | -8/Materials | Non-combat units ordered to evacuate 13078 | -8/Materials | X0-1V1 announced a LAN party 13103 | -8/Materials | Discovered exit to Factory (range 13) 13160 | -8/Materials | Combat units ordered to evacuate 13211 | -8/Materials | Discovered exit to Storage (range 8) 13360 | -8/Materials | Ambient heat levels rising (+10) 13510 | -8/Materials | Ambient heat levels rising (+10) 13633 | -8/Materials | Entered Storage 13707 | -8/Storage | Assisted by bots powering up and referring to "LRC-V3" 13724 | -8/Storage | X0-1V1 vaporized surrounding terrain (radius 22) 13858 | -8/Storage | X0-1V1 sent you into danger 14004 | -8/Storage | Build established: Commander-Gunner 14033 | -8/Storage | First assault squad dispatched 14057 | -8/Storage | Garrison activated, responded to threat 14114 | -8/Storage | Lost 4 allies 14321 | -8/Storage | X0-1V1 activates XOMVISION 14326 | -8/Storage | Repaired Hvy. Mass Driver 14385 | -8/Storage | Discovered exit to Factory (range 16) 14519 | -8/Storage | X0-1V1 caused items to flee you 14545 | -8/Storage | X0-1V1 revealed exit location to -8/Recycling 14599 | -8/Storage | Used back door to open Recycling access 14781 | -8/Storage | Items stopped fleeing you 14811 | -8/Storage | X0-1V1 foreshadows a heat wave 15041 | -8/Storage | Core integrity restored by X0-1V1 (+115) 15086 | -8/Storage | Ambient heat levels rising (+10) 15248 | -8/Storage | Core integrity restored by X0-1V1 (+115) 15248 | -8/Storage | Entered Recycling 15248 | -8/Recycling | Accompanied by 4 allies 15249 | -8/Recycling | Loaded intel: 4 recycling unit locations 15262 | -8/Recycling | Identified exit to Factory 15262 | -8/Recycling | X0-1V1 revealed exit location to -6/Factory 15364 | -8/Recycling | Build established: Scavenger-Gunner 16334 | -8/Recycling | X0-1V1 vaporized surrounding terrain (radius 16) 16537 | -8/Recycling | Entered Scraplab 16550 | -8/Recycling | Found Prototype Device 16550 | -8/Recycling | Identified Scrap Engine 16813 | -8/Recycling | X0-1V1 activates XOMVISION 16817 | -8/Recycling | Core integrity restored by X0-1V1 (+140) 17059 | -8/Recycling | Build established: Construct 17457 | -8/Recycling | X0-1V1 activates XOMVISION 17777 | -8/Recycling | Entered Factory 17777 | -6/Factory | Accompanied by 1 ally 17777 | -6/Factory | Evolved 4 slots: Propulsion x1, Utility x3 17904 | -6/Factory | System corruption reached 10% 18065 | -6/Factory | Discovered new exit (range 11) 18233 | -6/Factory | X0-1V1 vaporized surrounding terrain (radius 21) 18237 | -6/Factory | X0-1V1 sent hostile Mutant (x2) 18264 | -6/Factory | X0-1V1 redirected Transport squads to designated parking area 18329 | -6/Factory | Found Hvy. Reflective Plating 18474 | -6/Factory | Central database locked down 18901 | -6/Factory | X0-1V1 sent you into danger 18904 | -6/Factory | Identified exit to Lower Caves 18904 | -6/Factory | X0-1V1 revealed exit location to -6/Lower Caves 18960 | -6/Factory | X0-1V1 announced a LAN party 19062 | -6/Factory | X0-1V1 vaporized surrounding terrain (radius 21) 19111 | -6/Factory | X0-1V1 upgraded hostiles (x1) 19120 | -6/Factory | X0-1V1 sent you to a vault 19144 | -6/Factory | Found Prototype Device 19144 | -6/Factory | Identified Skeleton Box 19149 | -6/Factory | X0-1V1 enhanced Transport squad support 19232 | -6/Factory | X0-1V1 activates XOMVISION 19253 | -6/Factory | Discovered new exit (range 10) 19527 | -6/Factory | First assault squad dispatched 19587 | -6/Factory | Identified exit to Extension 19587 | -6/Factory | X0-1V1 revealed exit location to -6/Extension 19609 | -6/Factory | X0-1V1 put everyone to sleep 19728 | -6/Factory | Garrison activated, responded to threat 19995 | -6/Factory | X0-1V1 revealed exit location to -6/Extension 20024 | -6/Factory | Weapon slot count temporarily expanded by X0-1V1 (+4) 20060 | -6/Factory | X0-1V1 revealed exit location to -6/Lower Caves 20085 | -6/Factory | X0-1V1 activates XOMVISION 20406 | -6/Factory | X0-1V1 woke everyone up 20435 | -6/Factory | X0-1V1 vaporized surrounding terrain (radius 17) 20595 | -6/Factory | Weapon slot count reverted to normal (-4) 20718 | -6/Factory | X0-1V1 added 0b10 threat records associated with you (minor) 20732 | -6/Factory | Sucked down chute 20732 | -6/Factory | Entered Waste 20749 | -6/Waste | Spotted C-40 Crusher 20770 | -6/Waste | Spotted C-40 Crusher 20826 | -6/Waste | Spotted C-40 Crusher 20837 | -6/Waste | Spotted C-40 Crusher 20842 | -6/Waste | Spotted C-40 Crusher 20843 | -6/Waste | Spotted C-40 Crusher 20843 | -6/Waste | X0-1V1 sent you into danger 20868 | -6/Waste | Discovered new exit (range 12) 20880 | -6/Waste | Entered Factory 21482 | -6/Factory | Garrison activated, responded to threat 21662 | -6/Factory | Spotted B-75 Beast 21679 | -6/Factory | Destroyed B-75 Beast 21752 | -6/Factory | Core integrity restored by X0-1V1 (+192) 21868 | -6/Factory | Discovered exit to Lower Caves (range 7) 22078 | -6/Factory | Discovered new exit (range 6) 22280 | -6/Factory | First assault squad dispatched 22517 | -6/Factory | Discovered exit to Lower Caves (range 8) 22526 | -6/Factory | Discovered exit to Extension (range 10) 22659 | -6/Factory | X0-1V1 sent hostile G-50 Soldier (x4) 22673 | -6/Factory | X0-1V1 announced a LAN party 22896 | -6/Factory | X0-1V1 vaporized surrounding terrain (radius 15) 22970 | -6/Factory | X0-1V1 downgraded hostiles (x2) 23037 | -6/Factory | X0-1V1 put everyone to sleep 23070 | -6/Factory | Destroyed 13 combat bots 23085 | -6/Factory | Discovered new exit (range 17) 23148 | -6/Factory | X0-1V1 caused items to flee you 23180 | -6/Factory | X0-1V1 activates XOMVISION 23193 | -6/Factory | Entered Extension 23262 | -6/Extension | Rescued a captive Derelict 23353 | -6/Extension | Identified exit to Cetus 23353 | -6/Extension | X0-1V1 revealed exit location to -6/Cetus 23533 | -6/Extension | Spotted B-75 Beast 23543 | -6/Extension | First assault squad dispatched 23605 | -6/Extension | Rescued a captive Derelict 23606 | -6/Extension | Rescued a captive Derelict 23634 | -6/Extension | X0-1V1 activates XOMVISION 23860 | -6/Extension | X0-1V1 upgraded hostiles (x1) 23941 | -6/Extension | Spotted B-75 Beast 23955 | -6/Extension | X0-1V1 upgraded ally (x8) 23970 | -6/Extension | Allies destroyed B-75 Beast 23975 | -6/Extension | Build established: Commander-Construct 24062 | -6/Extension | Destroyed B-75 Beast 24069 | -6/Extension | Lost 5 allies 24083 | -6/Extension | Destroyed 10 combat bots 24142 | -6/Extension | Watched by a mysterious "MATRIX" hacker 24184 | -6/Extension | Rescued a captive Derelict 24186 | -6/Extension | Rescued a captive Derelict 24213 | -6/Extension | Rescued A7 24228 | -6/Extension | Rescued a captive Derelict 24324 | -6/Extension | Build established: Construct 24343 | -6/Extension | Disrupted transfer network 24394 | -6/Extension | Rescued a captive Derelict 24408 | -6/Extension | Rescued a captive Derelict 24409 | -6/Extension | Rescued a captive Derelict 24466 | -6/Extension | Discovered new exit (range 10) 24506 | -6/Extension | Disrupted transfer network 24674 | -6/Extension | Entered Cetus 24674 | -6/Cetus | Accompanied by 7 allies (A7) 24679 | -6/Cetus | Acquired a Cetus Manufacturing Module code from A7 24682 | -6/Cetus | Spotted Cetus Guard 24682 | -6/Cetus | Spotted Cetus Guard 24686 | -6/Cetus | Spotted Cetus Guard 24689 | -6/Cetus | Destroyed Cetus Guard 24689 | -6/Cetus | Spotted Cetus Guard 24701 | -6/Cetus | Allies destroyed Cetus Guard 24704 | -6/Cetus | Destroyed Cetus Guard 24706 | -6/Cetus | Destroyed Cetus Guard 24859 | -6/Cetus | Discovered new exit (range 24) 24892 | -6/Cetus | Spotted Cetus Guard 24893 | -6/Cetus | Spotted Cetus Guard 24901 | -6/Cetus | Spotted Cetus Guard 24901 | -6/Cetus | Destroyed Cetus Guard 24907 | -6/Cetus | Destroyed Cetus Guard 24915 | -6/Cetus | Destroyed Cetus Guard 24917 | -6/Cetus | Discovered new exit (range 21) 24917 | -6/Cetus | Spotted Cetus Guard 24920 | -6/Cetus | Destroyed Cetus Guard 24928 | -6/Cetus | Met Revision 17 25039 | -6/Cetus | Escorted A7 to Cetus Mainframe 25235 | -6/Cetus | X0-1V1 activates XOMVISION 25303 | -6/Cetus | X0-1V1 added 0b10 threat records associated with you (minor) 25414 | -6/Cetus | Started Cetus Manufacturing Module 25424 | -6/Cetus | Security sweep announced 25439 | -6/Cetus | Manufactured an Enhanced Grunt 25464 | -6/Cetus | Manufactured an Enhanced Grunt 25489 | -6/Cetus | Manufactured an Enhanced Grunt 25514 | -6/Cetus | Manufactured an Enhanced Grunt 25539 | -6/Cetus | Manufactured an Enhanced Grunt 25583 | -6/Cetus | Entered Archives 25583 | -6/Archives | Accompanied by 10 allies (A7) 25588 | -6/Archives | Received a hacking code to weaken MAIN.C 25594 | -6/Archives | Identified exit to Hub_04(d) 25594 | -6/Archives | X0-1V1 revealed exit location to -6/Hub_04(d) 25642 | -6/Archives | Discovered exit to Hub_04(d) (range 21) 25702 | -6/Archives | Discovered new exit (range 15) 25810 | -6/Archives | Build established: Commander-Construct 25876 | -6/Archives | Entered Hub_04(d) 25876 | -6/Hub_04(d) | Accompanied by 8 allies 25896 | -6/Hub_04(d) | Discovered new exit (range 13) 25919 | -6/Hub_04(d) | Spotted B-75 Beast 25934 | -6/Hub_04(d) | Destroyed B-75 Beast 26028 | -6/Hub_04(d) | X0-1V1 activates XOMVISION 26034 | -6/Hub_04(d) | Identified exit to Garrison 26091 | -6/Hub_04(d) | Garrison activated, responded to threat 26206 | -6/Hub_04(d) | Network Hub disabled 26224 | -6/Hub_04(d) | Spotted Lightning 26224 | -6/Hub_04(d) | Spotted Lightning 26224 | -6/Hub_04(d) | Spotted Lightning 26226 | -6/Hub_04(d) | First assault squad dispatched 26250 | -6/Hub_04(d) | Spotted Lightning 26252 | -6/Hub_04(d) | Core integrity fell below 50% 26253 | -6/Hub_04(d) | Lost 4 allies 26279 | -6/Hub_04(d) | Spotted Lightning 26284 | -6/Hub_04(d) | Spotted Lightning 26289 | -6/Hub_04(d) | Destroyed Lightning 26302 | -6/Hub_04(d) | Found Prototype Device 26302 | -6/Hub_04(d) | Identified Exp. Phase Shifter 26308 | -6/Hub_04(d) | Found Prototype Device 26308 | -6/Hub_04(d) | Identified Exp. EM Shield 26399 | -6/Hub_04(d) | Core integrity fell below 20% 26418 | -6/Hub_04(d) | Lost 3 parts (1n1u1w) 26441 | -6/Hub_04(d) | Entered Factory 26441 | -5/Factory | Evolved 2 slots: Power x1, Utility x1 26741 | -5/Factory | First assault squad dispatched 26971 | -5/Factory | Build established: Mutant 27204 | -5/Factory | Destroyed 7 combat bots 27999 | -5/Factory | X0-1V1 mutated your Weapon slot to Power slot 28345 | -5/Factory | X0-1V1 sent hostile Guerrilla (x2) 28386 | -5/Factory | Destroyed 11 combat bots 28490 | -5/Factory | X0-1V1 sent you to a vault 28529 | -5/Factory | Discovered new exit (range 7) 28622 | -5/Factory | X0-1V1 redirected Transport squads to designated parking area 28812 | -5/Factory | P-70 Sage assimilated allied Assassin 6b 28968 | -5/Factory | Lost 5 parts (5u) 29142 | -5/Factory | Identified exit to Upper Caves 29246 | -5/Factory | Entered Upper Caves 29559 | -5/Upper Caves | Build established: Construct 29754 | -5/Upper Caves | X0-1V1 activates XOMVISION 30026 | -5/Upper Caves | Attracted the attention of an 0b10 checkpoint 30033 | -5/Upper Caves | X0-1V1 sent allied Guerrilla (x3) 30158 | -5/Upper Caves | Attracted the attention of an 0b10 outpost 30192 | -5/Upper Caves | Destroyed 7 combat bots 30322 | -5/Upper Caves | Identified exit to Upper Caves 30322 | -5/Upper Caves | X0-1V1 revealed exit location to -5/Upper Caves 30370 | -5/Upper Caves | X0-1V1 rewrote JR-7L5(h) IFF filter 30411 | -5/Upper Caves | Entered an active Warlord outpost 30729 | -5/Upper Caves | Learned 4 Factory zone layouts 31109 | -5/Upper Caves | Entered another Upper Caves area 31177 | -5/Upper Caves | Discovered new exit (range 4) 31186 | -5/Upper Caves | Learned 4 Factory zone layouts 31209 | -5/Upper Caves | Attracted the attention of an 0b10 checkpoint 31293 | -5/Upper Caves | Learned location of 1 exit from Factory 31307 | -5/Upper Caves | X0-1V1 sent hostile P-70 Sage (x3) 31457 | -5/Upper Caves | Attracted the attention of an 0b10 outpost 31481 | -5/Upper Caves | Core integrity restored by X0-1V1 (+228) 31563 | -5/Upper Caves | Destroyed 11 combat bots 31909 | -5/Upper Caves | Discovered new exit (range 13) 32011 | -5/Upper Caves | Attacked by a delusional Derelict stockpiling Unaware 32233 | -5/Upper Caves | Spotted B-75 Beast 32254 | -5/Upper Caves | Allies destroyed B-75 Beast 32328 | -5/Upper Caves | Build established: Commander-Construct 32512 | -5/Upper Caves | X0-1V1 activates XOMVISION 32561 | -5/Upper Caves | Entered Warlord 32561 | -5/Warlord | Accompanied by 5 allies 32615 | -5/Warlord | RIF detected upon attempting to enter Warlord's base 32615 | -5/Warlord | Attacked by Warlord forces 32652 | -5/Warlord | Discovered new exit (range 14) 32786 | -5/Warlord | Warlord's base attacked by MAIN.C 32793 | -5/Warlord | Entered Proximity Caves 32793 | -4/Proximity Caves | Accompanied by 5 allies 32828 | -4/Proximity Caves | Attracted the attention of an 0b10 checkpoint 32835 | -4/Proximity Caves | Learned Research garrison access intel 33081 | -4/Proximity Caves | Lost 3 allies 33140 | -4/Proximity Caves | Spotted B-86 Titan 33222 | -4/Proximity Caves | X0-1V1 caused items to flee you 33307 | -4/Proximity Caves | Build established: Construct 33437 | -4/Proximity Caves | Items stopped fleeing you 33459 | -4/Proximity Caves | Learned location of 1 exit from Research 33603 | -4/Proximity Caves | Attracted the attention of an 0b10 base 33740 | -4/Proximity Caves | Core integrity restored by X0-1V1 (+209) 33803 | -4/Proximity Caves | Learned Factory garrison access intel 33803 | -4/Proximity Caves | Learned Extension trap positions 34055 | -4/Proximity Caves | Discovered new exit (range 6) 34069 | -4/Proximity Caves | Entered Factory 34069 | -4/Factory | Evolved 2 slots: Weapon x2 34070 | -4/Factory | Identified exit to Upper Caves 34071 | -4/Factory | Identified exit to Research 34073 | -4/Factory | Loaded intel: 4 garrison access locations 34142 | -4/Factory | X0-1V1 downgraded hostiles (x6) 34152 | -4/Factory | X0-1V1 sent allied H-77 Assassin (x4) 34270 | -4/Factory | X0-1V1 sent you to a vault 34431 | -4/Factory | P-70 Sage assimilated allied Assassin 7d 34561 | -4/Factory | Garrison activated, responded to threat 34587 | -4/Factory | Fabricated Exp. Shock Absorption System? 34596 | -4/Factory | Lost 3 parts (2u1w) 34602 | -4/Factory | Destroyed 8 combat bots 34946 | -4/Factory | Discovered exit to Research (range 19) 34947 | -4/Factory | Build established: Scavenger-Construct 34969 | -4/Factory | X0-1V1 put everyone to sleep 35050 | -4/Factory | X0-1V1 revealed exit location to -3/Research 35069 | -4/Factory | First assault squad dispatched 35473 | -4/Factory | X0-1V1 sent allied Thug (x5) 35486 | -4/Factory | Spotted B-86 Titan 35629 | -4/Factory | X0-1V1 woke everyone up 35666 | -4/Factory | X0-1V1 vaporized surrounding terrain (radius 16) 35755 | -4/Factory | Identified exit to Garrison 35914 | -4/Factory | Garrison activated, responded to threat 35919 | -4/Factory | X0-1V1 activates XOMVISION 36085 | -4/Factory | Garrison activated, responded to threat 36269 | -4/Factory | Build established: Construct 36580 | -4/Factory | Spotted B-86 Titan 36626 | -4/Factory | Destroyed B-86 Titan 36652 | -4/Factory | Lost 3 parts (1u2w) 36655 | -4/Factory | Destroyed 12 combat bots 36924 | -4/Factory | Sucked down chute 36924 | -4/Factory | Entered Waste 36926 | -4/Waste | Spotted C-40 Crusher 36971 | -4/Waste | Spotted C-40 Crusher 36975 | -4/Waste | Build established: Scavenger-Construct 36981 | -4/Waste | Destroyed C-40 Crusher 36991 | -4/Waste | Spotted C-40 Crusher 37006 | -4/Waste | Destroyed C-40 Crusher 37043 | -4/Waste | Spotted C-40 Crusher 37043 | -4/Waste | Spotted C-40 Crusher 37045 | -4/Waste | Destroyed C-40 Crusher 37054 | -4/Waste | X0-1V1 vaporized surrounding terrain (radius 21) 37054 | -4/Waste | Spotted C-40 Crusher 37056 | -4/Waste | Destroyed C-40 Crusher 37057 | -4/Waste | X0-1V1 sent hostile X-77 Beamer (x3) 37103 | -4/Waste | Discovered new exit (range 13) 37168 | -4/Waste | X0-1V1 sent hostile G-67 Veteran (x4) 37175 | -4/Waste | X0-1V1 sent allied Mutant (x4) 37220 | -4/Waste | Allies destroyed C-40 Crusher 37224 | -4/Waste | X0-1V1 activates XOMVISION 37281 | -4/Waste | Entered Factory 37455 | -4/Factory | X0-1V1 sent hostile Wasp (x3) 37477 | -4/Factory | Destroyed 7 combat bots 37532 | -4/Factory | Crushed by falling debris 37532 | -4/Factory | Core integrity fell below 50% 37589 | -4/Factory | Found Quantum Capacitor 37764 | -4/Factory | Central database locked down 37799 | -4/Factory | X0-1V1 sent allied P-70 Sage (x4) 37800 | -4/Factory | P-70 Sage assimilated hostile G-67 Veteran 37866 | -4/Factory | X0-1V1 redirected Transport squads to designated parking area 37867 | -4/Factory | Lost 6 allies 37903 | -4/Factory | X0-1V1 vaporized surrounding terrain (radius 21) 37991 | -4/Factory | Destroyed 10 combat bots 38113 | -4/Factory | Discovered exit to Research (range 18) 38188 | -4/Factory | X0-1V1 sent you to a vault 38260 | -4/Factory | Garrison activated, responded to threat 38281 | -4/Factory | First assault squad dispatched 38320 | -4/Factory | Lost 5 allies 38335 | -4/Factory | System corruption reached 10% 38512 | -4/Factory | X0-1V1 activates XOMVISION 38523 | -4/Factory | Destroyed 10 combat bots 38564 | -4/Factory | Discovered exit to Research (range 19) 38594 | -4/Factory | Build established: Construct 38610 | -4/Factory | Discovered exit to Upper Caves (range 19) 38633 | -4/Factory | Identified exit to Garrison 38637 | -4/Factory | Entered Garrison 38763 | -4/Garrison | Triggered checkpoint 38832 | -4/Garrison | Garrison Relay disabled 38880 | -4/Garrison | Discovered new exit (range 60) 38880 | -4/Garrison | Discovered new exit (range 33) 38880 | -4/Garrison | Discovered new exit (range 62) 38940 | -4/Garrison | System corruption reached 30% 38976 | -4/Garrison | Spotted B-86 Titan 38976 | -4/Garrison | Spotted B-86 Titan 39175 | -4/Garrison | Triggered checkpoint 39232 | -4/Garrison | Garrison Relay disabled 39355 | -4/Garrison | Found embedded Infiltrators 39417 | -4/Garrison | Spotted B-86 Titan 39428 | -4/Garrison | Destroyed B-86 Titan 39435 | -4/Garrison | Triggered checkpoint 39441 | -4/Garrison | Triggered checkpoint 39527 | -4/Garrison | Core integrity restored by X0-1V1 (+275) 39554 | -4/Garrison | Spotted Striker 39568 | -4/Garrison | Destroyed Striker 39585 | -4/Garrison | Rewired Striker 39613 | -4/Garrison | Triggered checkpoint 39713 | -4/Garrison | Triggered checkpoint 39870 | -4/Garrison | Expanded RIF knowledge: Patrol Navigation 39934 | -4/Garrison | Triggered checkpoint 40097 | -4/Garrison | Triggered checkpoint 40165 | -4/Garrison | X0-1V1 downgraded hostiles (x1) 40335 | -4/Garrison | Build established: Commander-Construct 40419 | -4/Garrison | Entered Armory 40419 | -4/Armory | Accompanied by 6 allies 40546 | -4/Armory | X0-1V1 revealed exit location to -3/Research 40669 | -4/Armory | First assault squad dispatched 40702 | -4/Armory | Lost 4 allies 40893 | -4/Armory | X0-1V1 downgraded hostiles (x1) 40937 | -4/Armory | Lost 4 allies 41028 | -4/Armory | X0-1V1 put everyone to sleep 41200 | -4/Armory | Build established: Construct 41259 | -4/Armory | X0-1V1 sent allied Executioner (x1) 41265 | -4/Armory | Weapon slot count temporarily expanded by X0-1V1 (+4) 41382 | -4/Armory | Discovered exit to Research (range 5) 41399 | -4/Armory | Core integrity restored by X0-1V1 (+319) 41416 | -4/Armory | Entered Research 41416 | -3/Research | Evolved 2 slots: Utility x2 41417 | -3/Research | Identified exit to Quarantine 41418 | -3/Research | Loaded intel: 4 garrison access locations 41482 | -3/Research | Identified exit to Research 41482 | -3/Research | X0-1V1 revealed exit location to -2/Research 41616 | -3/Research | Revision forces began assault on 0b10 41623 | -3/Research | Met up with Revision 17++ 41751 | -3/Research | Weapon slot count reverted to normal (-4) 42083 | -3/Research | Found Prototype Processor 42083 | -3/Research | Identified Spectral Analyzer 42116 | -3/Research | Research terminal network offline 42215 | -3/Research | X0-1V1 sent you to a vault 42507 | -3/Research | Spotted Striker 42509 | -3/Research | Spotted Striker 42560 | -3/Research | Lost 3 allies 42666 | -3/Research | Found Prototype Protection 42666 | -3/Research | Identified Centrium Heavy Armor Plating 42755 | -3/Research | Found Prototype Device 42755 | -3/Research | Identified Exp. Focal Shield 42835 | -3/Research | Build established: Scavenger-Construct 43131 | -3/Research | Spotted Striker 43135 | -3/Research | Destroyed Striker 43256 | -3/Research | Spotted Striker 43263 | -3/Research | Destroyed Striker 43278 | -3/Research | Spotted Striker 43279 | -3/Research | Spotted Striker 43287 | -3/Research | Destroyed Striker 43290 | -3/Research | Destroyed Striker 43321 | -3/Research | Spotted Striker 43336 | -3/Research | Destroyed Striker 43563 | -3/Research | Discovered exit to Research (range 23) 43579 | -3/Research | Spotted Striker 43592 | -3/Research | Destroyed Striker 43628 | -3/Research | Lost 3 allies 43731 | -3/Research | X0-1V1 revealed exit location to -3/Quarantine 43739 | -3/Research | Spotted Striker 43741 | -3/Research | Spotted Striker 43746 | -3/Research | Destroyed Striker 43748 | -3/Research | Destroyed Striker 43790 | -3/Research | X0-1V1 activates XOMVISION 43866 | -3/Research | X0-1V1 revealed exit location to -2/Research 43921 | -3/Research | Destroyed Striker 43926 | -3/Research | Destroyed Striker 43927 | -3/Research | Spotted Executioner 43927 | -3/Research | Destroyed Striker 43928 | -3/Research | Spotted Striker 43935 | -3/Research | Destroyed Striker 43957 | -3/Research | Destroyed Executioner 44028 | -3/Research | Spotted Striker 44051 | -3/Research | Destroyed Striker 44108 | -3/Research | Destroyed Striker 44194 | -3/Research | Build established: Construct 44337 | -3/Research | Spotted Executioner 44340 | -3/Research | Spotted Striker 44345 | -3/Research | Destroyed Striker 44378 | -3/Research | Destroyed Executioner 44581 | -3/Research | Found Adv. Powered Armor 44635 | -3/Research | Spotted Executioner 44635 | -3/Research | Destroyed Executioner 44651 | -3/Research | Spotted Striker 44670 | -3/Research | High security lockdown imminent 44677 | -3/Research | Destroyed Striker 44682 | -3/Research | Found Prototype Processor 44682 | -3/Research | Identified Exp. Core Analyzer 44692 | -3/Research | Found Prototype Processor 44692 | -3/Research | Identified Exp. Targeting Computer 44696 | -3/Research | Found Exp. Core Analyzer 44750 | -3/Research | High security lockdown engaged 44762 | -3/Research | Entered Quarantine 44934 | -3/Quarantine | Cryocooling Duct disabled 44936 | -3/Quarantine | Cryocooling Duct disabled 44949 | -3/Quarantine | Ambient heat levels rising (+20) 44949 | -3/Quarantine | Non-combat units ordered to evacuate 44951 | -3/Quarantine | Ambient heat levels rising (+20) 44951 | -3/Quarantine | Combat units ordered to evacuate 44986 | -3/Quarantine | Build established: Scavenger-Construct 45044 | -3/Quarantine | Found Alien Artifact 45051 | -3/Quarantine | Quarantine Guard activated 45172 | -3/Quarantine | Spotted Quarantine Guard 45173 | -3/Quarantine | Spotted Quarantine Guard 45194 | -3/Quarantine | Destroyed Quarantine Guard 45198 | -3/Quarantine | Destroyed Quarantine Guard 45220 | -3/Quarantine | X0-1V1 announced a LAN party 45299 | -3/Quarantine | Build established: Construct 45321 | -3/Quarantine | Spotted Quarantine Guard 45337 | -3/Quarantine | Destroyed Quarantine Guard 45373 | -3/Quarantine | Spotted Quarantine Guard 45405 | -3/Quarantine | Destroyed Quarantine Guard 45410 | -3/Quarantine | Spotted Quarantine Guard 45413 | -3/Quarantine | Destroyed Quarantine Guard 45431 | -3/Quarantine | System corruption reached 10% 45477 | -3/Quarantine | X0-1V1 caused items to flee you 45529 | -3/Quarantine | Spotted Quarantine Guard 45534 | -3/Quarantine | Destroyed Quarantine Guard 45555 | -3/Quarantine | Spotted Quarantine Guard 45558 | -3/Quarantine | Destroyed Quarantine Guard 45599 | -3/Quarantine | Spotted Quarantine Guard 45599 | -3/Quarantine | Destroyed Quarantine Guard 45673 | -3/Quarantine | Items stopped fleeing you 45697 | -3/Quarantine | Discovered exit to Research (range 15) 45697 | -3/Quarantine | Spotted Quarantine Guard 45715 | -3/Quarantine | Destroyed Quarantine Guard 45790 | -3/Quarantine | Spotted Quarantine Guard 45797 | -3/Quarantine | Destroyed Quarantine Guard 45876 | -3/Quarantine | Identified exit to Garrison 46014 | -3/Quarantine | Spotted Quarantine Guard 46014 | -3/Quarantine | X0-1V1 sent you into danger 46017 | -3/Quarantine | Destroyed Quarantine Guard 46083 | -3/Quarantine | Found Prototype Device 46083 | -3/Quarantine | Identified Exp. Shield Generator 46213 | -3/Quarantine | System corruption reached 30% 46254 | -3/Quarantine | X0-1V1 mutated your Power slot to Propulsion slot 46268 | -3/Quarantine | Spotted Quarantine Guard 46268 | -3/Quarantine | X0-1V1 sent you into danger 46268 | -3/Quarantine | Destroyed Quarantine Guard 46557 | -3/Quarantine | X0-1V1 added 0b10 threat records associated with you (considerable) 46707 | -3/Quarantine | X0-1V1 activates XOMVISION 47353 | -3/Quarantine | Found Alien Artifact 47796 | -3/Quarantine | X0-1V1 vaporized surrounding terrain (radius 17) 48238 | -3/Quarantine | Found Sigix Corpse 49356 | -3/Quarantine | Met incapacitated Sigix Warrior 49356 | -3/Quarantine | Lockdown squad dispatched 49725 | -3/Quarantine | Found Sigix Containment Pod 50021 | -3/Quarantine | Spotted Lightning 50022 | -3/Quarantine | Spotted Lightning 50032 | -3/Quarantine | Spotted Lightning 50063 | -3/Quarantine | Destroyed Lightning 50069 | -3/Quarantine | Destroyed Lightning 50075 | -3/Quarantine | Destroyed Lightning 50103 | -3/Quarantine | Found Exp. EM Shield 50113 | -3/Quarantine | Found Exp. Targeting Computer 50117 | -3/Quarantine | Found Exp. Phase Shifter 50380 | -3/Quarantine | Found Alien Artifact 50635 | -3/Quarantine | X0-1V1 activates XOMVISION 50731 | -3/Quarantine | Cryocooling Duct disabled 50746 | -3/Quarantine | Ambient heat levels rising (+20) 50816 | -3/Quarantine | Cryocooling Duct disabled 50820 | -3/Quarantine | Cryocooling Duct disabled 50831 | -3/Quarantine | Ambient heat levels rising (+20) 50835 | -3/Quarantine | Ambient heat levels rising (+20) 51081 | -3/Quarantine | Found Exp. Hacking Suite 51082 | -3/Quarantine | Found Exp. Hacking Suite 51083 | -3/Quarantine | Exp. Hacking Suite fried by hacking feedback 51175 | -3/Quarantine | Found Alien Energy Cannon 51567 | -3/Quarantine | X0-1V1 sent you to a vault 51617 | -3/Quarantine | X0-1V1 sent hostile Guerrilla (x2) 51642 | -3/Quarantine | Found Alien Artifact 51642 | -3/Quarantine | Identified Emergency Decompositor 51642 | -3/Quarantine | Installed Emergency Decompositor, gained core-matter conversion pathway 51657 | -3/Quarantine | Found Prototype Device 51657 | -3/Quarantine | Identified System Purifier 51660 | -3/Quarantine | Found Prototype Device 51660 | -3/Quarantine | Identified Adv. Particle Accelerator 51665 | -3/Quarantine | Found Prototype Device 51665 | -3/Quarantine | Identified Exp. Sensor Array 51786 | -3/Quarantine | Found Sigix Corpse 51809 | -3/Quarantine | X0-1V1 activates XOMVISION 51845 | -3/Quarantine | X0-1V1 put everyone to sleep 51852 | -3/Quarantine | X0-1V1 sent hostile P-80 Master (x3) 51854 | -3/Quarantine | X0-1V1 added 0b10 threat records associated with you (major) 51865 | -3/Quarantine | X0-1V1 upgraded hostiles (x1) 51877 | -3/Quarantine | Weapon slot count temporarily expanded by X0-1V1 (+1) 51900 | -3/Quarantine | Entered Garrison 51902 | -3/Garrison | X0-1V1 destroyed Phase Generator 51902 | -3/Garrison | Phase Generator disabled 51906 | -3/Garrison | X0-1V1 vaporized surrounding terrain (radius 23) 51911 | -3/Garrison | X0-1V1 sent hostile Mutant (x2) 51915 | -3/Garrison | Spotted B-86 Titan 51915 | -3/Garrison | X0-1V1 sent you into danger 51966 | -3/Garrison | Destroyed B-86 Titan 51982 | -3/Garrison | Triggered checkpoint 52009 | -3/Garrison | Destroyed 11 combat bots 52024 | -3/Garrison | Garrison Relay disabled 52039 | -3/Garrison | Garrison Relay disabled 52066 | -3/Garrison | Discovered exit to Research (range 59) 52066 | -3/Garrison | Discovered exit to Research (range 84) 52066 | -3/Garrison | Discovered exit to Research (range 34) 52096 | -3/Garrison | Triggered checkpoint 52131 | -3/Garrison | Triggered checkpoint 52206 | -3/Garrison | Expanded RIF knowledge: Alert ID Control 52323 | -3/Garrison | Weapon slot count reverted to normal (-1) 52334 | -3/Garrison | Destroyed 10 combat bots 52415 | -3/Garrison | Spotted B-86 Titan 52425 | -3/Garrison | Destroyed B-86 Titan 52609 | -3/Garrison | Core integrity restored by X0-1V1 (+312) 52682 | -3/Garrison | Entered Research 52682 | -2/Research | Evolved 2 slots: Utility x2 52689 | -2/Research | Discovered new exit (range 12) 52750 | -2/Research | Discovered new exit (range 16) 52785 | -2/Research | X0-1V1 released a cloud of subatomizers 52805 | -2/Research | X0-1V1 announced a LAN party 52921 | -2/Research | Found Hvy. Reactive Plating 53024 | -2/Research | X0-1V1 caused items to flee you 53169 | -2/Research | X0-1V1 activates XOMVISION 53182 | -2/Research | First assault squad dispatched 53245 | -2/Research | Identified exit to Testing 53245 | -2/Research | X0-1V1 revealed exit location to -2/Testing 53255 | -2/Research | Items stopped fleeing you 53482 | -2/Research | Found Hvy. Reactive Plating 53628 | -2/Research | Identified exit to Access 53628 | -2/Research | X0-1V1 revealed exit location to -1/Access 53682 | -2/Research | Entered Testing 53731 | -2/Testing | Build established: Scavenger-Construct 53880 | -2/Testing | Found Prototype Energy Gun 53880 | -2/Testing | Identified Warp Gun 53895 | -2/Testing | X0-1V1 sent you to a vault 53916 | -2/Testing | X0-1V1 activates XOMVISION 54021 | -2/Testing | System corruption reached 10% 54055 | -2/Testing | Build established: Construct 54067 | -2/Testing | Found Quantum Capacitor 54090 | -2/Testing | Lost 3 parts (3u) 54106 | -2/Testing | Found Prototype Launcher 54106 | -2/Testing | Identified Z-bomb Delivery System 54196 | -2/Testing | X0-1V1 caused items to flee you 54227 | -2/Testing | X0-1V1 announced a LAN party 54232 | -2/Testing | X0-1V1 added 0b10 threat records associated with you (considerable) 54310 | -2/Testing | Discovered exit to Access (range 15) 54396 | -2/Testing | Items stopped fleeing you 54532 | -2/Testing | X0-1V1 added 0b10 threat records associated with you (considerable) 54682 | -2/Testing | First assault squad dispatched 54759 | -2/Testing | Spotted Alpha 7 54768 | -2/Testing | Destroyed Alpha 7 54782 | -2/Testing | Found Corrupted Prototype Ballistic Gun 54782 | -2/Testing | Identified Multirail 54801 | -2/Testing | Rewired Z9-FTN(L) 54808 | -2/Testing | Rewired GD-WLM(L) 54864 | -2/Testing | Spotted Striker 54864 | -2/Testing | Spotted Striker 54870 | -2/Testing | Destroyed Striker 54873 | -2/Testing | Spotted Alpha 7 54878 | -2/Testing | Allies destroyed Striker 54884 | -2/Testing | Destroyed Alpha 7 54928 | -2/Testing | Found Prototype Hackware 55052 | -2/Testing | P-80 Master assimilated allied GD-WLM(L) 55057 | -2/Testing | Destroyed GD-WLM(L) 55274 | -2/Testing | Weapon slot count temporarily expanded by X0-1V1 (+1) 55274 | -2/Testing | High security lockdown imminent 55284 | -2/Testing | X0-1V1 turns hostiles against one another 55328 | -2/Testing | Destroyed 11 combat bots 55346 | -2/Testing | Identified exit to Protoforge 55346 | -2/Testing | X0-1V1 revealed exit location to -2/Protoforge 55354 | -2/Testing | High security lockdown engaged 55402 | -2/Testing | X0-1V1 activates XOMVISION 55510 | -2/Testing | Spotted Fortress 55581 | -2/Testing | Discovered new exit (range 6) 55586 | -2/Testing | Entered Protoforge 55665 | -2/Protoforge | Weapon slot count reverted to normal (-1) 55674 | -2/Protoforge | Superfortress began startup sequence 55688 | -2/Protoforge | Identified Ghost Barrier 55707 | -2/Protoforge | Spotted B-90 Cyclops 55728 | -2/Protoforge | Discovered exit to Access (range 6) 55757 | -2/Protoforge | Spotted Hotshot 55759 | -2/Protoforge | Destroyed Hotshot 55761 | -2/Protoforge | Spotted Hotshot 55763 | -2/Protoforge | Spotted Hotshot 55767 | -2/Protoforge | Spotted Hotshot 55770 | -2/Protoforge | Destroyed Hotshot 55787 | -2/Protoforge | Weapon slot count temporarily expanded by X0-1V1 (+1) 55801 | -2/Protoforge | Destroyed Hotshot 55826 | -2/Protoforge | X0-1V1 sent allied Guerrilla (x2) 55826 | -2/Protoforge | Destroyed Hotshot 55836 | -2/Protoforge | First assault squad dispatched 55858 | -2/Protoforge | Spotted Immortal 55864 | -2/Protoforge | Spotted Immortal 55869 | -2/Protoforge | Spotted Immortal 55889 | -2/Protoforge | X0-1V1 activates XOMVISION 55901 | -2/Protoforge | Destroyed Immortal 55945 | -2/Protoforge | Destroyed Immortal 55981 | -2/Protoforge | Build established: Hacker-Construct 56029 | -2/Protoforge | Found Exp. Shield Generator 56036 | -2/Protoforge | X0-1V1 turns hostiles against one another 56050 | -2/Protoforge | Destroyed B-90 Cyclops 56109 | -2/Protoforge | Weapon slot count reverted to normal (-1) 56116 | -2/Protoforge | Found Prototype Device 56116 | -2/Protoforge | Identified Exp. System Purifier 56127 | -2/Protoforge | Found Prototype Device 56127 | -2/Protoforge | Identified Cep. Antimissile System 56142 | -2/Protoforge | Found Prototype Device 56142 | -2/Protoforge | Identified Cep. Weapon Articulator 56202 | -2/Protoforge | X0-1V1 sent you to a vault 56210 | -2/Protoforge | Found Prototype Device 56213 | -2/Protoforge | Identified Exp. Thermal Shield 56291 | -2/Protoforge | Found Prototype Energy Cannon 56295 | -2/Protoforge | Identified YOLO Cannon 56338 | -2/Protoforge | Spotted AP7-3 56345 | -2/Protoforge | Spotted AP7-3 56347 | -2/Protoforge | Destroyed AP7-3 56372 | -2/Protoforge | Destroyed AP7-3 56502 | -2/Protoforge | Spotted SKR-2 56504 | -2/Protoforge | Spotted EXE-6 56506 | -2/Protoforge | Spotted SKR-2 56507 | -2/Protoforge | Spotted EXE-6 56512 | -2/Protoforge | Spotted SKR-2 56530 | -2/Protoforge | Core integrity fell below 50% 56531 | -2/Protoforge | Identified Phase Armor 56534 | -2/Protoforge | Destroyed SKR-2 56540 | -2/Protoforge | Core integrity fell below 20% 56558 | -2/Protoforge | X0-1V1 sent allied Elite (x3) 56561 | -2/Protoforge | Destroyed SKR-2 56562 | -2/Protoforge | Destroyed by EXE-6 with Concept XC Strikerail Last Messages --------------- 56558_ N-04 Retriever collects Unknown Energy Gun. 56559_ IH-834(E): "Truly odd." 56559_ Penetrated by Slug. 56560_ Forge Plexus deploys N-04 Retriever. 56560_ Destroyed Impulse Thruster Array. 56560_ SKR-2 knocked back. 56560_ N-04 Retriever collects Nanoactuators. 56560_ N-04 Retriever collects Impulse Thruster Array. 56560_ Slug penetrates SKR-2. 56560_ Slug penetrates N-04 Retriever. 56560_ G-73 Enforcer suffers critical hit (Destroy). 56560_ K-01 Serf collects debris. 56561_ Phase Armor destroyed. 56561_ Slug penetrates SKR-2. 56561_ N-04 Retriever collects Enh. Force Lance. 56561_ Slug penetrates EXE-6. 56561_ SKR-2 destroyed. 56562_ Overheating: Lrg. Storage Unit damaged (-17). 56562_ Penetrated by Slug. 56562_ X0-1V1 bursts into laughter! Map ----- +----------------------------------------------------+ | ?????????????????????????????????????????????????? | | ?????????????????????????????????????????????????? | | ?????????????????#####???????????????????????????? | | ??????????????##########?????????????????????????? | | ??????????????# ## " ??????????????????? | | ?????????????##% ]## """" ????????????????? | | #####+#########% % ## """" ?????????????? | | % #% !/ ## " ???????????? | | % + / ## "" " ????????? | | % # ## " ???????? | | ?### %# %= ## " "" ???????? | | ???# """ #% = ## """"" " ???????? | | ???# """ # ! ## "" "" " """????? | | ???# """ ########### "" " "" """"???? | | ???# ####??????# "" " """"""??? | | ???# " #??????# "" " """"""??? | | ???# " #??????# " """"""??? | | ???# " #??????# "? """""""?? | | ???# #???####w ""? " " """""""?? | | ???# """ ##?##!##m " "" """"""""? | | ???# """ ##"#=###! """ n " """"""""? | | ?? """ =!*%k/%" """ """"" " """"""""? | | " "%*%!E nE "" " """"""""" | | "%" "!% /gm%= % " E"""""""" | | ?######+############# ""#g/!g % """""""" | | ???????????????????######@ """"""" "" """""""" | | ???????????????????##???# %"% " " E""""""" | | ????????????????????????# " " """""" | | ????????????????????????# % "" """"" | | ????????????????????????# "" "" "" """" | | ????????????????????????# "" "" " " """ | | ????????????????????????# "" E """ ""?? "? | | ????????????????????????# " " ?????? | | ????????????????????????# " "" """ ???? | | ????????????????????????# " " """ "? " ??? | | ????????????????????????# " """ ? ?? | | ????????????????????????# "" " ?? ??? | | ????????????????????????# " " "? " ??""??? | | ????????????????????????# ?? " ?? ??? | | ????????????????????????# "" ??" """?????? | | ????????????????????????# "" "? "?? "??????? | | ????????????????????????? " ?? "????????????? | | ????????????????????????? "" "" ?? " ???????????? | | ???????????????????????????????? ?? ?????????????? | | ?????????????????????????????????????????????????? | | ?????????????????????????????????????????????????? | | ?????????????????????????????????????????????????? | | ?????????????????????????????????????????????????? | | ?????????????????????????????????????????????????? | | ?????????????????????????????????????????????????? | +----------------------------------------------------+ Best States ------------- Heat Dissipation 170 Coolant Potential 120 Energy Generation 109 Energy Capacity 3532 Matter Stores 1000 Matter Capacity 1400 Sight Range 27 Terrain Scan Density 10 Jamming Range 14 Base Temperature (-) 200 Armor Coverage 1200 Resistance: KI 40 Resistance: TH 46 Resistance: EM 100 Weapon Cycling 20 Phase Shifting 20 Evasion (%) 78 Targeting Accuracy 32 Target Analysis 6 Core Analysis 8 Recoil Reduction 5 Energy Filtering 50 Particle Charging 25 Kinecelleration 40 Offensive Hacking 14 Defensive Hacking 20 Relay Coupler Types 1 Relay Coupler Value 99 Item Schematics ----------------- Centrium Heavy Treads | -3/Quarantine | Archive Exp. Signal Interpreter | -3/Quarantine | Archive Neutron Missile Launcher | -2/Testing | Archive Helical Railgun | -2/Testing | Archive Cld. Field Propulsion Drive | -2/Testing | Archive Cld. Phase Gun | -2/Testing | Archive Adv. Micro-nuke Launcher | -2/Testing | Archive Imp. Quantum Reactor | -2/Testing | Archive Diametric Drive | -2/Testing | Archive Exp. Power Amplifier | -2/Testing | Archive Exp. Melee Analysis Suite | -2/Testing | Archive Robot Schematics ------------------ C-55 Analyst | -3/Quarantine | Archive A-27 Freighter | -3/Quarantine | Archive R-06 Scavenger | -2/Testing | Archive A-15 Conveyor | -2/Testing | Archive Fabricated ------------ Exp. Shock Absorption System | x1 | -4/Factory | Preloaded Repaired ---------- Hvy. Mass Driver | 50% | -8/Storage Studied --------- Assault Cannon | -8/Materials | Hacked Hvy. Particle Cannon | -8/Materials | Hacked Hpw. Shotgun | -8/Materials | Hacked Arm. Wheel | -8/Materials | Hacked Adv. Treads | -6/Factory | Hacked Arm. Treads | -6/Factory | Hacked Lrn. Missile Launcher | -6/Factory | Hacked Hpw. Shock Rifle | -6/Factory | Hacked Imp. Remote Datajack | -4/Factory | Hacked Hyp. Mass Driver | -4/Factory | Hacked Linear Accelerator | -3/Research | Hacked KE Penetrator | -3/Research | Hacked Nova Cannon | -3/Quarantine | Hacked Adv. Remote Datajack | -3/Quarantine | Hacked Alien Tech Used ----------------- Emergency Decompositor Phase Armor Achievements -------------- None Challenges ------------ None Game ------ Seed RefineryAssaultSheargun Manual? 0 Play Time 08:16:24 Cumulative 621.5 hours Start 2026.09.02 @ 20:00:06 End 2026.09.03 @ 05:33:28 Sessions 3 Manual Loads 0 Difficulty Rogue Special Mode None Game No. 340 Rogue 340 Adventurer 0 Explorer 0 Win Type - Total 20 Types 10/1/3/1/1/0/1/1/0/2 Lore% 86 Gallery% 84 Achievement% 76 Wizard Run 0 Options --------- Layout 0 ASCII 0 Keyboard 0 Movement Mouse Keybinds 0 Fullscreen 1 Font 18/SmallcapsGlow Map View 76x50 Zoom Use 0% Tactical HUD 1 Map Filters NONE Filters NONE Steam 1 RUN: 53d9d29f-8af0-4602-80f7-443f3146a064